Workbook

Sheet À remplir
A1: La Calvette, Magasin Général , 819 727-9559 | I1: Consignes d'utilisation
A2: Date :
A3: Nom du client : | I3: Veuillez suivre les étapes dans l'ordre S.V.P.
A4: Téléphone : | H4: ="1. " -> 1. | I4: Sauvegarder le fichier de commande sur votre ordinateur.
A5: Courriel : | H5: ="2. " -> 2. | I5: Remplir les informations clients dans les cellules correspondantes.
A6: Description du véhicule : | H6: ="3. " -> 3. | I6: Inscrire le nombre d'items dans la colonne 'Qté' dans chaque onglet du fichier.
C7: En cas de rupture de stock, veuillez indiquer votre choix par un 'X' dans la case correspondante : | H7: ="4. " -> 4. | I7: Faites-nous parvenir votre commande par courriel :
I8: calvettecommande@cableamos.com
A9: Remplacer par un produit équivalent, le moins cher possible :
I10: Conseils et informations
H11: ="1. " -> 1. | I11: Sauvegardez votre fichier fréquemment.
A12: Note : Les taxes et consignes vont s'ajuster à la facturation finale. | H12: ="2. " -> 2. | I12: Pour accéder aux différents départements, cliquez sur les flèches dans le coin inférieur gauche pour les faire défiler.
B13: Estimation totale de votre commande : | F13: ='Chocolat de Pâques'!E7+'Mets préparés'!E68+Épiceries!E293+Pains!E18+'Pr. Laitier'!E26+Frais!E28+Eaux!E17+Desserts!E49+Breuvages!E197+Friandises!E201+'Noix +Pepper.'!E26+'Bières+Alcomalts'!E174+'Pharm+Pr.Ménager'!E87+'Vins-Spiritueux'!E135+Animaux!E13 -> 0
H14: ="3. " -> 3. | I14: Pour décontaminer votre épicerie, faites une recherche sur Google et inscrivez : COVID-19 : comment décontaminer son épicerie.
A16: Information sur les commandes | H16: ="4. " -> 4. | I16: Pour éviter tout problème dans vos commandes, il est fortement recommandé de supprimer votre fichier de commande après réception de celle-ci et de télécharger un nouveau fichier pour chacune de vos commandes.
A17: ● 3 items identiques maximum par client.
A18: ● La vente de tabac à distance est interdite.
A19: ● Alcool : Présenter une carte d’identité en personne quand vous passerez.
A21: Commentaires pour La Calvette
I22: Récupération de votre commande
I23: Une fois que vous aurez reçu la confirmation que votre commande est prête, rendez-vous avec votre auto, au deuxième débarcadère sur le côté de la bâtisse de La Calvette. Nous sortirons vous faire payer et ensuite nous déposerons votre commande directement dans votre voiture et vous pourrez repartir. Si nous ne venons pas à votre rencontre, contactez-nous au 819 727-9559. Si vous êtes dans l’impossibilité de vous déplacer, contactez-nous.
A27: Délai de préparation
A28: Nous demandons 24h ou moins. Dès que votre commande sera prête, nous communiquerons avec vous.
I30: Modalités de paiement
A31: Jours et heures pour récupérer votre commande : | I31: Une fois sur place avec votre auto, nous vous ferons payer à l’extérieur avec notre machine Interac sans-fil. De notre côté, nous désinfecterons la machine Interac entre chaque client. Mais nous vous suggérons fortement d’utiliser les cartes paiement sans contact Paypass (Interac et cartes de crédit acceptées). Note : aucun montant en argent comptant ou chèque ne sera accepté.
A32: Du lundi au vendredi, entre 14h et 16h.

Sheet Sommaire (hidden)
A1: La Calvette, Magasin Général
A2: Date :
A3: Nom du client :
A4: Teléphone :
A5: Courriel :
A6: Description du véhicule :
A8: Note : Les taxes et consignes vont s'ajuster à la facturation finale.
A10: Remplacer par un produit équivalent, le moins cher possible :
A11: Ne pas remplacer :
A13: Commentaires pour La Calvette
A19: Description #1 | B19: Description #2 | C19: Qté | D19: Prix | E19: Total

Sheet Chocolat de Pâques
A1: La Calvette, Magasin Général de Landrienne, 819-727-9559
A2: Le prix inscrit est une indication que nous essayons de respecter, mais nous devons nous ajuster aux fluctuations au jour le jour.
A3: Desription #1 | B3: Desription #2 | C3: Qté | D3: Prix | E3: Total
A4: RÉFRIGÉRÉ
A5: Lapin 250g | D5: 10.99 | E5: =C5*D5 -> 0
A6: Chien 250g | D6: 10.99 | E6: =C6*D6 -> 0
C7: Sous total : | E7: =SUM(E5:E6) -> 0

Sheet Mets préparés
A1: La Calvette, Magasin Général de Landrienne, 819-727-9559
A2: Le prix inscrit est une indication que nous essayons de respecter, mais nous devons nous ajuster aux fluctuations au jour le jour.
A3: Desription #1 | B3: Desription #2 | C3: Qté | D3: Prix | E3: Total
A4: Mets Familials (pour 4)
A5: Doigts de poulet (8x) et riz | D5: 20.99 | E5: =C5*D5 -> 0
A6: Fricassé de bœuf | D6: 20.99 | E6: =C6*D6 -> 0
A7: Gratin de jambon riz et brocoli | D7: 20.99 | E7: 0
A8: Lasagne | D8: 20.99 | E8: 0
A9: Macaroni à la viande | D9: 20.99 | E9: 0
A10: Nouilles chinoises | D10: 20.99 | E10: 0
A11: Pain de viande au Porc et marinara | D11: 20.99 | E11: 0
A12: Pâté chinois | D12: 20.99 | E12: 0
A13: Pâtes béchamel au poulet | D13: 20.99 | E13: 0
A14: Pâtés impériaux au porc (8x) et riz | D14: 20.99 | E14: 0
A15: Pennes soupe à l'oignon | D15: 20.99 | E15: 0
A16: Riz au légumes et poulet | D16: 20.99 | E16: 0
A17: Sauce à spag 875gr | D17: 10.99 | E17: 0
A18: Sauce à spag 425gr | D18: 5.89 | E18: 0
A20: Mets Individuels
A21: Assiette du pêcheur | D21: 7.29 | E21: 0
A22: Bologne rôti | D22: 7.29 | E22: 0
A23: Doigts Poulet | D23: 7.59 | E23: 0
A24: Filet de sole panné | D24: 7.59 | E24: 0
A25: Fricassé au Porc | D25: 7.29 | E25: 0
A26: Gratin de jambon riz et brocoli | D26: 7.29 | E26: 0
A27: Lasagne | D27: 6.89 | E27: 0
A28: Macaroni à la Viande | D28: 7.09 | E28: 0
A29: Macaroni à la viande gratiné | D29: 7.29 | E29: 0
A30: Nouilles chinoises | D30: 6.89 | E30: 0
A31: Pain viande au Porc | D31: 7.29 | E31: 0
A32: Pâté Chinois | D32: 6.89 | E32: 0
A33: Pâtes Béchamel au Poulet | D33: 7.29 | E33: 0
A34: Pâtés impériaux au porc | D34: 7.59 | E34: 0
A35: Pâtes Marinara au Porc | D35: 7.29 | E35: 0
A36: Pennes soupet à l'oignon | D36: 7.29 | E36: 0
A37: Poulet Hot Chicken | D37: 7.29 | E37: 0
A38: Riz légumes et Poulet | D38: 7.29 | E38: 0
A39: Sauce au Saumon | D39: 7.59 | E39: 0
A40: Saucisses italienne et patates grecs | D40: 8.29 | E40: 0
A41: Steak haché | D41: 7.99 | E41: 0
A43: Sandwich - Sous-Marin
A44: Sandwich aux œufs | D44: 4.09 | E44: 0
A45: Sandwich Poulet | D45: 4.39 | E45: 0
A46: Sandwich Jambon | D46: 4.39 | E46: 0
A47: Sandwich jambon fromage | D47: 4.39 | E47: 0
A48: Sandwich œuf fromage | D48: 4.39 | E48: 0
A49: S-M Costaud | D49: 6.09 | E49: 0
A50: S-M Pizza Bacon | D50: 6.09 | E50: 0
A51: S-M Pizza SANS Bacon | D51: 5.69 | E51: 0
A52: S-M à la Dinde | D52: 6.09 | E52: 0
A53: S-M Jambon et From.Suisse | D53: 6.09 | E53: 0
A54: S-M Poulet Croustillant | D54: 6.09 | E54: 0
A55: S-M Tacos | D55: 6.09 | E55: 0
A56: S-M Poulet Faïtas | D56: 6.09 | E56: 0
A57: S-M Le p'tit Smoked meat | D57: 6.09 | E57: 0
A58: S-M Rosbif | D58: 5.99 | E58: 0
A59: S-M Dinde Bacon et From. Suisse | D59: 6.09 | E59: 0
A60: S-M Coco et From. Suisse | D60: 5.99 | E60: 0
A61: Trio Garnis | D61: 5.29 | E61: 0
A62: Gros Jean | D62: 5.29 | E62: 0
A63: Wrap Doigts Poulet | D63: 5.99 | E63: 0
A64: Wrap Poulet Bacon | D64: 5.69 | E64: 0
A65: Crudités | D65: 3.89 | E65: 0
A66: Salade au Poulet | D66: 6.29 | E66: 0
A67: Salade Macaroni | D67: 4.39 | E67: 0
C68: Sous-total : | E68: =SUM(E5:E67) -> 0

Sheet Épiceries
A1: La Calvette, Magasin Général de Landrienne, 819-727-9559
A2: Le prix inscrit est une indication que nous essayons de respecter, mais nous devons nous ajuster aux fluctuations au jour le jour.
A3: Desription #1 | B3: Desription #2 | C3: Qté | D3: Prix | E3: Total | K3: Qté
A4: RÉFRIGÉRÉ
A5: Beurre à l'ail | D5: =J5 -> 3.09 | E5: =C5*D5 -> 0 | F5: 1 | G5: 1.98 | H5: =G5/F5 -> 1.98 | I5: =1-(H5/J5) -> 0.359223301 | J5: 3.09 | K5: 65897
A6: Beurre Béatrice 454gr | D6: 6.99 | E6: 0 | F6: 20 | G6: 94.96 | H6: 4.748 | I6: 0.3207439199 | J6: 6.99 | K6: 68069
A7: Creme fouetté aérosol | D7: 6.203125 | E7: 0 | F7: 1 | G7: 3.97 | H7: 3.97 | I7: 0.36 | J7: =H7/0.64 -> 6.203125 | K7: 65916
A8: Fromage râpé Parmesan 125gr | B8: Kraft | D8: 6.09 | E8: =C8*D8 -> 0
A9: Fromage tranche 1/2 paquet Kraft | B9: Kraft | D9: 5.890625 | E9: 0 | F9: 1 | G9: 3.77 | H9: 3.77 | I9: 0.36 | J9: 5.890625 | K9: 5228
A10: Fromage philadelphia boite 250gr | B10: Kraft | D10: 6.99 | E10: 0
A11: Lunchmate-Jambon | D11: 5.09375 | E11: 0 | F11: 1 | G11: 3.26 | H11: 3.26 | I11: 0.36 | J11: 5.09375 | K11: 32012
A12: Lunchmate-Saucisse | D12: 5.09375 | E12: 0 | F12: 1 | G12: 3.26 | H12: 3.26 | I12: 0.36 | J12: 5.09375 | K12: 32017
A13: Margarine 427g | B13: Lactancia | D13: 3.283854167 | E13: 0 | F13: 24 | G13: 50.44 | H13: 2.101666667 | I13: 0.36 | J13: 3.283854167 | K13: 14224
A14: Margarine 454g | B14: Multi-choix | D14: 1.796223958 | E14: 0 | F14: 24 | G14: 27.59 | H14: 1.149583333 | I14: 0.36 | J14: 1.796223958 | K14: 4001
A15: Margarine 900g | B15: Multi-choix | D15: 3.477864583 | E15: 0 | F15: 12 | G15: 26.71 | H15: 2.225833333 | I15: 0.36 | J15: 3.477864583 | K15: 54530
A16: Œufs douzaine | B16: Richard | D16: 4.742708333 | E16: 0 | F16: 15 | G16: 45.53 | H16: 3.035333333 | I16: 0.36 | J16: 4.742708333 | K16: 27392
A17: Trempette Phil. Oignon 227gr | B17: Kraft | D17: 4.99 | E17: =C17*D17 -> 0
A18: Trempette Phil. Herbe/Ail 227gr | B18: Kraft | D18: 4.99 | E18: 0
A19: Trempette Phil. Cornichon/Aneth 227gr | B19: Kraft | D19: 4.99 | E19: 0
A21: Fromage Gasper
A22: Fromage bloc petit | B22: GASPER | D22: =J22 -> 6.53 | E22: =C22*D22 -> 0 | J22: 6.53
A23: Fromage bloc Gros (Variable) | B23: GASPER | D23: 14.62 | E23: 0 | J23: Variable
A24: Fromage grain petit 220gr | B24: GASPER | D24: =J24 -> 5.4 | E24: 0 | J24: 5.4
A25: Fromage grain Gros 500gr | B25: GASPER | D25: 12.3 | E25: 0 | J25: 12.3
A26: Fromage frais à tartiner Ail et Basilics | B26: GASPER | D26: 6.45 | E26: 0 | J26: 6.45
A27: Fromage frais à tartiner aux Légumes | B27: GASPER | D27: 6.45 | E27: 0 | J27: 6.45
A28: Fromage frais à tartiner Ranch | B28: GASPER | D28: 6.45 | E28: 0 | J28: 6.45
A29: Fromage frais à tartiner Érable et chipotle | B29: GASPER | D29: 6.45 | E29: 0 | J29: 6.45
A31: Vache à Maillotte
A32: Fromage Tortillon 50gr | B32: Vache à Maillotte | D32: =J32 -> 2.19 | E32: =C32*D32 -> 0 | J32: 2.19 | K32: 00062860550004
A33: Fromage Tortillon BBQ 50g | B33: Vache à Maillotte | D33: 2.29 | E33: 0 | J33: 2.29 | K33: 00062860550036
A34: Fromage bloc Marbre 230g | B34: Vache à Maillotte | D34: 5.79 | E34: 0 | J34: 5.79 | K34: 00062860550038
A35: Fromage bloc jaune 230g | B35: Vache à Maillotte | D35: 5.99 | E35: 0 | J35: 5.99 | K35: 00062860550039
A36: Fromage Poutine 400g | B36: Vache à Maillotte | D36: 8.79 | E36: 0 | J36: 8.79 | K36: 00062860550201
A37: Fromage Râpé 500g | B37: Vache à Maillotte | D37: 9.89 | E37: 0 | J37: 9.89 | K37: 00062860550207
A39: VIANDE SURGELÉE
A40: Bavette de boeuf assaisonnée 1x225gr | B40: Viande Première | D40: =J40 -> 9.079365079 | E40: =C40*D40 -> 0 | F40: 18 | G40: 114.4 | H40: =G40/F40 -> 6.355555556 | J40: =H40/0.7 -> 9.079365079 | K40: 78501
A41: Boeuf haché maigre 1x454gr | B41: Viande Première | D41: =J41 -> 5.617857143 | E41: 0 | F41: 24 | G41: 94.38 | H41: =G41/24 -> 3.9325 | J41: =H41/0.7 -> 5.617857143 | K41: 63630
A42: Steak de boeuf haut de surlonge 2x170gr | B42: Viande Première | D42: 11.99 | E42: =C42*D42 -> 0 | F42: 20 | G42: 76.27 | H42: =G42/F42 -> 3.8135 | J42: =H42/0.7 -> 5.447857143 | K42: 68450
A43: Steak de bœuf C+Filet C/C AA 1x285gr | B43: Viande Première | D43: 12.99 | E43: =C43*D43 -> 0
A44: Cotelettes de porc 1/2" 6x125gr | B44: Viande Première | D44: =J44 -> 9.437755102 | E44: 0 | F44: 14 | G44: 92.49 | H44: =G44/F44 -> 6.606428571 | J44: =H44/0.7 -> 9.437755102 | K44: 3682
A45: Porc haché 85% 1x454gr | B45: Viande Première | D45: =J45 -> 4.68452381 | E45: 0 | F45: 12 | G45: 39.35 | H45: 3.279166667 | J45: =H45/0.7 -> 4.68452381 | K45: 3714
A46: Poulet prêt à cuire env 1,4kg | D46: 9.79 | E46: 0 | F46: 12 | G46: 90.72 | H46: 7.56 | J46: =H46/0.75 -> 10.08 | K46: 60025
A47: Poitrines poulet désossées gelées séparément 2x2kg | B47: Menu | D47: =J47 -> 46.4625 | E47: =C47*D47 -> 0 | F47: 1 | G47: 37.17 | H47: =G47/F47 -> 37.17 | J47: =H47/0.8 -> 46.4625 | K47: 28084
A48: Tournedos poulet bacon 2x150gr | B48: Dunham | D48: =J48 -> 7.9 | E48: 0 | F48: 12 | G48: 71.1 | H48: 5.925 | J48: =H48/0.75 -> 7.9 | K48: 24841
A50: PRODUITS SURGELÉS
A51: Ailes de poulet BBQ douces | B51: St-Hubert | D51: =J51 -> 15.99 | E51: =C51*D51 -> 0 | F51: 12 | G51: 127.13 | H51: =G51/F51 -> 10.59416667 | I51: =1-(H51/#REF!) ->  | J51: 15.99 | K51: 50390
A52: Ailes de poulet BBQ épicées | B52: St-Hubert | D52: 15.99 | E52: 0 | F52: 12 | G52: 127.13 | H52: 10.59416667 | I52: =1-(H52/#REF!) ->  | J52: 15.99 | K52: 50454
A53: Brocoli fleurette cong. 1kg | B53: Art.Garden | D53: 6.253571429 | E53: 0 | F53: 8 | G53: 35.02 | H53: 4.3775 | J53: =H53/0.7 -> 6.253571429 | K53: 56400
A54: Choux-fleur fleurette cong. 1kg | B54: Art.Garden | D54: 5.365079365 | E54: 0 | F54: 9 | G54: 33.8 | H54: 3.755555556 | J54: =H54/0.7 -> 5.365079365 | K54: 31500
A55: Côtes levées BBQ | B55: St-Hubert | D55: 18.69 | E55: 0 | F55: 12 | G55: 133.13 | H55: 11.09416667 | I55: =1-(H55/#REF!) ->  | J55: 18.69 | K55: 93012
A56: Filet sole | B56: Highliner | D56: 8.09 | E56: 0 | F56: 12 | G56: 59.93 | H56: 4.994166667 | I56: =1-(H56/#REF!) ->  | J56: 8.09 | K56: 11312
A57: Foie de veau | B57: Skylark | D57: 2.19 | E57: 0 | F57: 40 | G57: 45.15 | H57: 1.12875 | I57: =1-(H57/#REF!) ->  | J57: 2.19 | K57: 3886
A58: Fraises congelé 1kg | B58: Menu | D58: 7.39 | E58: =C58*D58 -> 0
A59: Fruits congelés 4 Baies 1kg | B59: Alasko | D59: 9.99 | E59: =C59*D59 -> 0
A60: Frites enrobées Cavendish | B60: Cavendish | D60: 5.59 | E60: 0 | F60: 12 | G60: 39.6 | H60: 3.3 | I60: =1-(H60/#REF!) ->  | J60: 5.59 | K60: 99838
A61: Frites régulière Cavendish | B61: Cavendish | D61: 5.19 | E61: 0 | F61: 12 | G61: 33.97 | H61: 2.830833333 | I61: =1-(H61/#REF!) ->  | J61: 5.19 | K61: 95002
A62: Légumes bistro cong. (fèves-carotte-Panais) 2kg | B62: Bonduelle | D62: 8.892857143 | E62: 0 | F62: 4 | G62: 24.9 | H62: =G62/4 -> 6.225 | J62: =H62/0.7 -> 8.892857143 | K62: 30785
A63: Légumes californien cong. 750gr | B63: Art.Garden | D63: 5.35 | E63: 0 | F63: 12 | G63: 51.21 | H63: =G63/F63 -> 4.2675 | J63: 5.35 | K63: 94305
A64: Pâtés impériaux au porc (pqts 6) | B64: O Met Chinois | D64: 6.89 | E64: 0 | J64: 6.89
A65: Pâté poulet 800gr | B65: St-Hubert | D65: 11.99 | E65: =C65*D65 -> 0
A66: Pizza aux Légumes - La Calvette | B66: La Calvette | D66: 13.79 | E66: 0 | J66: 13.79
A67: Pizza Bacon Oignon - La Calvette | B67: La Calvette | D67: 14.09 | E67: 0 | J67: 14.09
A68: Pizza Carnivor - La Calvette | B68: La Calvette | D68: 14.99 | E68: 0 | J68: 14.99
A69: Pizza Gasper - La Calvette | B69: La Calvette | D69: 16.69 | E69: 0 | J69: 16.69
A70: Pizza Pépé Fom Bacon - La Calvette | B70: La Calvette | D70: 13.89 | E70: 0 | J70: 13.89
A71: Pizza Pépé From - La Calvette | B71: La Calvette | D71: 13.89 | E71: 0 | J71: 13.89
A72: Pizza pochette | B72: McCain | D72: 5.59 | E72: 0 | F72: 16 | G72: 51.1 | H72: =G72/F72 -> 3.19375 | I72: =1-(H72/#REF!) ->  | J72: 5.59 | K72: 45315
A73: Pizza Poulet BBQ - La Calvette | B73: La Calvette | D73: 14.99 | E73: 0 | J73: 14.99
A74: Pizza Salade de la Mer - La Calvette | B74: La Calvette | D74: 14.99 | E74: 0 | J74: 14.99
A75: Pizza Toute Garnis - La Calvette | B75: La Calvette | D75: 14.09 | E75: 0 | J75: 14.09
A76: Pogo | B76: Pogo | D76: 4.99 | E76: 0 | F76: 12 | G76: 40.01 | H76: =G76/F76 -> 3.334166667 | I76: =1-(H76/#REF!) ->  | J76: 4.99 | K76: 13154
A77: Rondelles d'oignons | B77: McCain | D77: 5.59 | E77: 0 | F77: 8 | G77: 25.55 | H77: =G77/F77 -> 3.19375 | I77: =1-(H77/#REF!) ->  | J77: 5.59 | K77: 31189
A78: Saucisses Ital douce Roma | B78: Roma | D78: 8.29 | E78: 0 | F78: 8 | G78: 41.28 | H78: =G78/F78 -> 5.16 | I78: =1-(H78/#REF!) ->  | J78: 8.29 | K78: 5543
A80: CHARCUTERIE
A81: Bacon en tranche 500gr | B81: Lafleur | D81: =J81 -> 8.671875 | E81: =C81*D81 -> 0 | F81: 1 | G81: 5.55 | H81: =G81/F81 -> 5.55 | I81: =1-(H81/J81) -> 0.36 | J81: =H81/0.64 -> 8.671875 | K81: 32
A82: Bologne tranché 454gr | B82: Olymel | D82: 4.3 | E82: 0 | G82: 2,71//lb cost | H82: 4,30$/lb | J82: 4.3 | K82: Maison/62060
A83: Bologne Unilox 500gr | B83: Olymel | D83: 6.486328125 | E83: 0 | F83: 8 | G83: 33.21 | H83: =G83/F83 -> 4.15125 | I83: =1-(H83/J83) -> 0.36 | J83: =H83/0.64 -> 6.486328125 | K83: 62058
A84: Jambon toupi tranché 454gr | B84: Lafleur | D84: 5.5 | E84: 0 | G84: 3,77/lb cost | H84: 5,50$/lb | J84: 5.5 | K84: Maison/190
A85: Pastrami tranché 227gr | B85: Lesters | D85: 4.77 | E85: 0 | G85: 6,21/lb cost | H85: 9,55$/lb | J85: 4.77 | K85: Maison/1435
A86: Peppéroni 500g | B86: Schneiders | D86: 11.79 | E86: 0 | F86: 6 | G86: 49.57 | H86: =G86/F86 -> 8.261666667 | I86: =1-(H86/J86) -> 0.2992649138 | J86: 11.79 | K86: 19201
A87: Peppéroni batonnet 250g | B87: Schneiders | D87: 8.59 | E87: 0 | F87: 12 | G87: 71.7 | H87: =G87/F87 -> 5.975 | I87: =1-(H87/J87) -> 0.3044237485 | J87: 8.59 | K87: 18503
A88: Rosbif tranché 227gr | B88: Lesters | D88: 4.77 | E88: 0 | G88: 6,64/lb cost | H88: 9,55$/lb | J88: 4.77 | K88: Maison/1712
A89: Saucisses hot-dog 375gr | B89: Hygrade | D89: 5.19 | E89: 0 | F89: 24 | G89: 71.7 | H89: 3.82 | I89: =1-(H89/J89) -> 0.2639691715 | J89: 5.19 | K89: 1 ou 2542
A90: Saucisses hot-dog BBQ 450gr | B90: Lafleur | D90: 4.59 | E90: 0 | F90: 1 | G90: 3.1 | H90: 3.34 | I90: =1-(H90/J90) -> 0.2723311547 | J90: 4.59 | K90: 6505
A92: EPICERIE
A93: Bacon éclat garn.salade 117gr | B93: Club House | D93: =J93 -> 5.09 | E93: =C93*D93 -> 0 | F93: 6 | G93: 19.47 | H93: =G93/F93 -> 3.245 | I93: =1-(H93/J93) -> 0.362475442 | J93: 5.09 | K93: 3251
A94: Base de bouillon poulet 400g | B94: Loneys | D94: 7.59 | E94: 0 | F94: 12 | G94: 58.55 | H94: 4.879166667 | I94: 0.3571585419 | J94: 7.59 | K94: 49503
A95: Beurre d`arachides | D95: 6.65 | E95: 0 | F95: 1 | G95: 4.26 | H95: 4.26 | I95: 0.3593984962 | J95: 6.65 | K95: 60829
A96: Bicarbonate de soude 500gr | B96: Arm&Hammer | D96: 2.15 | E96: 0 | F96: 1 | G96: 1.37 | H96: 1.37 | I96: 0.3627906977 | J96: 2.15 | K96: 61002
A97: Biscuit Chips Ahoy | D97: 5.89 | E97: 0 | F97: 1 | G97: 3.76 | H97: 3.76 | I97: 0.3616298812 | J97: 5.89 | K97: 60562
A98: Biscuit Fudgeo | D98: 5.89 | E98: 0 | F98: 1 | G98: 3.76 | H98: 3.76 | I98: 0.3616298812 | J98: 5.89 | K98: 60601
A99: Biscuit Oreo | D99: 5.89 | E99: 0 | F99: 1 | G99: 3.76 | H99: 3.76 | I99: 0.3616298812 | J99: 5.89 | K99: 60937
A100: Biscuit soda salé Premium 450gr | B100: Christie | D100: 6.15 | E100: 0 | F100: 1 | G100: 3.94 | H100: 3.94 | I100: 0.3593495935 | J100: 6.15 | K100: 60942
A101: Bouillon à fondue | D101: 6.59 | E101: 0 | F101: 1 | G101: 4.19 | H101: 4.19 | I101: 0.3641881639 | J101: 6.59 | K101: 60854
A102: Bouillon de bœuf sans sel 900ml | B102: Campbell | D102: 3.89 | E102: 0 | F102: 12 | G102: 30.42 | H102: 2.535 | I102: 0.3483290488 | J102: 3.89 | K102: 11835
A103: Bouillon de poulet sans sel 900ml | B103: Campbell | D103: 3.89 | E103: 0 | F103: 12 | G103: 30.42 | H103: 2.535 | I103: 0.3483290488 | J103: 3.89 | K103: 15941
A104: Bovril au bœuf 250ml | B104: Bovril | D104: 6.05 | E104: 0 | F104: 1 | G104: 3.91 | H104: 3.91 | I104: 0.3537190083 | J104: 6.05 | K104: 60853
A105: Bovril au poulet 250ml | B105: Bovril | D105: 6.05 | E105: 0 | F105: 1 | G105: 3.91 | H105: 3.91 | I105: 0.3537190083 | J105: 6.05 | K105: 60852
A106: Cacao Fry | D106: 6.59 | E106: 0 | F106: 1 | G106: 4.21 | H106: 4.21 | I106: 0.3611532625 | J106: 6.59 | K106: 62762
A107: Café Folgers | D107: 7.4296875 | E107: 0 | F107: 6 | G107: 28.53 | H107: 4.755 | I107: 0.36 | J107: =H107/0.64 -> 7.4296875 | K107: 20605
A108: Café instantané Maxwell House | D108: 7.49 | E108: 0 | F108: 1 | G108: 3.99 | H108: 4.99 | I108: 0.3337783712 | J108: 7.49 | K108: Ville
A109: Café instantané Nescafé | D109: 7.49 | E109: 0 | F109: 1 | G109: 3.99 | H109: 4.99 | I109: 0.3337783712 | J109: 7.49 | K109: Ville
A110: Café moulu Mi-Noir 284gr | B110: Bob Marley | D110: 12.99 | E110: 0 | I110: 1 | J110: 12.99
A111: Café moulu Moyen 284gr | B111: Bob Marley | D111: 12.99 | E111: 0 | I111: 1 | J111: 12.99
A112: Caramel Grenache | D112: 2.578125 | E112: 0 | F112: 1 | G112: 1.65 | H112: =G112/F112 -> 1.65 | I112: 0.36 | J112: =H112/0.64 -> 2.578125 | K112: 60827
A113: Cassonade brillante 1kg | B113: Lantic | D113: 3.99 | E113: 0 | F113: 1 | G113: 2.4 | H113: 2.4 | I113: 0.3984962406 | J113: 3.99 | K113: 62765
A114: Céréales Cheerios | D114: 5.140625 | E114: 0 | F114: 1 | G114: 3.29 | H114: 3.29 | I114: 0.36 | J114: =H114/0.64 -> 5.140625 | K114: 60957
A115: Céréales Froot Loops | D115: 8.109375 | E115: 0 | F115: 1 | G115: 5.19 | H115: 5.19 | I115: 0.36 | J115: =H115/0.64 -> 8.109375 | K115: 60806
A116: Céréales Frosted Flakes | D116: 8.109375 | E116: 0 | F116: 1 | G116: 5.19 | H116: 5.19 | I116: 0.36 | J116: =H116/0.64 -> 8.109375 | K116: 60807
A117: Céréales Rice Krispies | D117: 6.21875 | E117: 0 | F117: 1 | G117: 3.98 | H117: 3.98 | I117: 0.36 | J117: =H117/0.64 -> 6.21875 | K117: 60809
A118: Cerise Marasquin | D118: 4.79 | E118: 0 | F118: 1 | G118: 3.05 | H118: 3.05 | I118: 0.363256785 | J118: 4.79 | K118: 60863
A119: Cheese whiz Kraft 500g | D119: 7.99 | E119: =C119*D119 -> 0 | F119: 16 | G119: 30.45 | H119: =G119/F119 -> 1.903125 | I119: =1-(H119/J119) -> 0.36 | J119: =H119/0.64 -> 2.973632812 | K119: 50246
A120: Chocolat blanc sac brisure 225gr | B120: Hershey | D120: 5.59 | E120: 0 | F120: 18 | G120: 65.2 | H120: 3.622222222 | I120: 0.3520174916 | J120: 5.59 | K120: 74893
A121: Chocolat en poudre Nesquick | D121: 7.484375 | E121: 0 | F121: 1 | G121: 4.79 | H121: 4.79 | I121: 0.36 | J121: =H121/0.64 -> 7.484375 | K121: 60049
A122: Chocolat sac brisure mi-sucré 300gr | B122: Baker's | D122: 4.99 | E122: 0 | F122: 1 | G122: 3.19 | H122: 3.19 | I122: 0.3607214429 | J122: 4.99 | K122: 60992
A123: Clamato extra-épicé 1,89 litre | D123: 6.19 | E123: 0 | F123: 8 | G123: 31.63 | H123: 3.95375 | I123: 0.3612681745 | J123: 6.19 | K123: 14456
A124: Clamato extra-épicé 945 ml | D124: 3.6 | E124: 0 | F124: 1 | G124: 2.31 | H124: 2.31 | I124: 0.3583333333 | J124: 3.6 | K124: 62726
A125: Clamato l`original 1,89 litre | D125: 6.19 | E125: 0 | F125: 8 | G125: 31.63 | H125: 3.95375 | I125: 0.3612681745 | J125: 6.19 | K125: 14457
A126: Clamato l`original 945 ml | D126: =J126 -> 3.6 | E126: =C126*D126 -> 0 | F126: 1 | G126: 2.31 | H126: 2.31 | I126: 0.3583333333 | J126: 3.6 | K126: 62717
A127: Coffee Mate | D127: 5.390625 | E127: 0 | F127: 1 | G127: 3.45 | H127: 3.45 | I127: 0.36 | J127: =H127/0.64 -> 5.390625 | K127: 60977
A128: Combustible à fondue | D128: 2.29 | E128: 0 | F128: 1 | G128: 1.45 | H128: 1.45 | I128: 0.3668122271 | J128: 2.29 | K128: 62753
A129: Confiture framboises | D129: 4.484375 | E129: 0 | F129: 1 | G129: 2.87 | H129: 2.87 | I129: 0.36 | J129: =H129/0.64 -> 4.484375 | K129: 60821
A130: Cornet | D130: 2.69 | E130: 0 | F130: 1 | G130: 2.03 | H130: 2.03 | J130: 2.69 | K130: 60187
A131: Cornichon à l`Aneth à l`ail | D131: 5.69 | E131: 0 | F131: 12 | G131: 43.8 | H131: 3.65 | I131: =1-(H131/J131) -> 0.3585237258 | J131: 5.69 | K131: 14707
A132: Cornichon sucré | D132: 4.49 | E132: 0 | F132: 1 | G132: 2.87 | H132: 2.87 | I132: 0.3608017817 | J132: 4.49 | K132: 60868
A133: Craquelin Breton 225gr | B133: Dare | D133: 4.69 | E133: 0 | F133: 1 | G133: 3.02 | H133: 3.02 | I133: 0.3560767591 | J133: 4.69 | K133: 60406
A134: Croûtons à l'ail 150gr | B134: Grisol | D134: 3.05 | E134: 0 | F134: 1 | G134: 1.94 | H134: 1.94 | I134: 0.3639344262 | J134: 3.05 | K134: 60513
A135: Dattes dénoyautés | D135: 4.39 | E135: 0 | F135: 1 | G135: 2.83 | H135: 2.83 | I135: 0.3553530752 | J135: 4.39 | K135: 60856
A136: Épices à spaghetti 405gr | B136: Club House | D136: 16.99 | E136: 0 | F136: 1 | G136: 10.57 | H136: 10.57 | I136: 0.3778693349 | J136: 16.99 | K136: 91255
A137: Extrait de vanille | D137: 5.99 | E137: 0 | F137: 6 | G137: 22.97 | H137: 3.828333333 | I137: 0.3608792432 | J137: 5.99 | K137: 27866
A138: Farine tout usage 2,5kg | B138: Robin Hood | D138: 9.19 | E138: 0 | F138: 1 | G138: 5.89 | H138: 5.89 | I138: 0.359085963 | J138: 9.19 | K138: 62760
A139: Farine tout usage 20kg | B139: Baker Rose | D139: 29.99 | E139: =C139*D139 -> 0
A140: Fécule de maïs 454gr | B140: Corn Strach | D140: 4.49 | E140: 0 | F140: 1 | G140: 2.88 | H140: 2.88 | I140: 0.3585746102 | J140: 4.49 | K140: 62761
A141: Fèves blanches 900gr | B141: St-Arnaud | D141: 4.29 | E141: 0 | F141: 1 | G141: 2.8 | H141: 2.8 | I141: 0.3473193473 | J141: 4.29 | K141: 60369
A142: Filtres à café | D142: 3.15 | E142: 0 | F142: 1 | G142: 2 | H142: 2 | I142: 0.3650793651 | J142: 3.15 | K142: 62741
A143: Fromage Parmesan râpé 125g | B143: Kraft | D143: 6.19 | E143: 0 | F143: 1 | G143: 3.98 | H143: 3.98 | I143: 0.3570274637 | J143: 6.19 | K143: 62712
A144: Glaçage à la vanille | D144: 3.89 | E144: 0 | F144: 1 | G144: 2.46 | H144: 2.46 | I144: 0.3676092545 | J144: 3.89 | K144: 60014
A145: Glaçage au chocolat | D145: 3.89 | E145: 0 | F145: 1 | G145: 2.46 | H145: 2.46 | I145: 0.3676092545 | J145: 3.89 | K145: 62702
A146: Graisse pure lard 454gr | B146: Tenderflake | D146: 5.35 | E146: 0 | F146: 1 | G146: 3.42 | H146: 3.42 | I146: 0.3607476636 | J146: 5.35 | K146: 60801
A147: Graisse shortening tout usage 454gr | B147: Crisco | D147: 4.09375 | E147: 0 | F147: 1 | G147: 2.62 | H147: 2.62 | I147: 0.36 | J147: =H147/0.64 -> 4.09375 | K147: 60800
A148: Grenadine | D148: 4.29 | E148: 0 | F148: 2.93 | G148: =F148/B148 ->  | I148: 1 | J148: 4.29 | K148: 60582
A149: Gruau rapide | D149: 4.09375 | E149: 0 | F149: 1 | G149: 2.62 | H149: =G149/F149 -> 2.62 | I149: 0.36 | J149: =H149/0.64 -> 4.09375 | K149: 60538
A150: Guimauves | D150: 3.29 | E150: 0 | F150: 12 | G150: 24.23 | H150: 2.019166667 | I150: 0.3862715299 | J150: 3.29 | K150: 13443
A151: Huile Canola 4 litres | D151: 8.69 | E151: 0 | F151: 4 | G151: 22.12 | H151: 5.53 | I151: 0.3636363636 | J151: 8.69 | K151: 4281
A152: Huile Canola 946 ml | D152: 3.85 | E152: 0 | F152: 12 | G152: 28.7 | H152: 2.391666667 | I152: 0.3787878788 | J152: 3.85 | K152: 7970
A153: Huile d'olive extra-vierge 100% 750ml | B153: Sheylus | D153: 6.191798942 | E153: 0 | F153: 12 | G153: 46.81 | H153: 3.900833333 | I153: 0.37 | J153: =H153/0.63 -> 6.191798942 | K153: 82845
A154: Huile d'olives pure 250ml | B154: Bertolli | D154: 6.99 | E154: 0 | F154: 1 | G154: 4.48 | H154: 4.48 | I154: 0.3590844063 | J154: 6.99 | K154: 60506
A155: Ketchup 375ml | B155: Heinz | D155: 3.99 | E155: 0 | F155: 1 | G155: 2.54 | H155: 2.54 | I155: 0.3634085213 | J155: 3.99 | K155: 60965
A156: Kraft dîner | D156: 2.75 | E156: 0 | F156: 35 | G156: 61.8 | H156: 1.765714286 | I156: 0.3579220779 | J156: 2.75 | K156: 21854
A157: Lait évaporé | B157: Carnation | D157: 2.953125 | E157: 0 | F157: 1 | G157: 1.89 | H157: 1.89 | I157: 0.36 | J157: =H157/0.64 -> 2.953125 | K157: 62771
A158: Lait sucré condensé 300ml | B158: Eagle bran | D158: 5.99 | E158: 0 | F158: 24 | G158: 86.25 | H158: 3.59375 | I158: 0.4000417362 | J158: 5.99 | K158: 14721
A159: Levure rapide 3x8gr | B159: Fleischman | D159: =J159 -> 3.09 | E159: =C159*D159 -> 0 | F159: 18 | G159: 35 | H159: 1.944444444 | I159: 0.3707299533 | J159: 3.09 | K159: 58035
A160: Levure traditionnel 113gr | B160: Fleischman | D160: 7.45 | E160: 0 | F160: 12 | G160: 56.3 | H160: 4.691666667 | I160: 0.370246085 | J160: 7.45 | K160: 90263
A161: Maïs a éclater sac 1kg | B161: Thompsons | D161: 3.45 | E161: 0 | F161: 12 | G161: 21.45 | H161: 1.7875 | I161: 0.481884058 | J161: 3.45 | K161: 15184
A162: Maïs à éclater smart pop x-beurre | B162: Redenbache | D162: 4.59 | E162: 0 | F162: 12 | G162: 34.71 | H162: 2.8925 | I162: 0.3698257081 | J162: 4.59 | K162: 60778
A163: Map-O-Spread | D163: 3.49 | E163: 0 | F163: 1 | G163: 2.23 | H163: 2.23 | I163: 0.3610315186 | J163: 3.49 | K163: 60356
A164: Mayonnaise Hellman | D164: 5.75 | E164: 0 | F164: 1 | G164: 3.68 | H164: 3.68 | I164: 0.36 | J164: =H164/0.64 -> 5.75 | K164: 60106
A165: Mélange à crêpes | D165: 4.89 | E165: 0 | F165: 1 | G165: 3.15 | H165: 3.15 | I165: 0.3558282209 | J165: 4.89 | K165: 60379
A166: Mélange à gâteau chocolat | D166: 3.453125 | E166: 0 | F166: 1 | G166: 2.21 | H166: 2.21 | I166: 0.36 | J166: =H166/0.64 -> 3.453125 | K166: 62701
A167: Mélange à gâteau vanille | D167: 3.453125 | E167: 0 | F167: 1 | G167: 2.21 | H167: 2.21 | I167: 0.36 | J167: =H167/0.64 -> 3.453125 | K167: 60950
A168: Mélasse | D168: 5.6875 | E168: 0 | F168: 1 | G168: 3.64 | H168: 3.64 | I168: 0.36 | J168: =H168/0.64 -> 5.6875 | K168: 60826
A169: Miel d'été crémeux Grande Ours 1kg | B169: La Grande Ours | D169: 14.39 | E169: 0 | J169: 14.39
A170: Miel d'été crémeux Grande Ours 375gr | B170: La Grande Ours | D170: 5.89 | E170: 0 | J170: 5.89
A171: Miel d'été liquide Grande Ours 1kg | B171: La Grande Ours | D171: 14.39 | E171: 0 | J171: 14.39
A172: Miel d'été liquide Grande Ours 375gr | B172: La Grande Ours | D172: 5.89 | E172: 0 | J172: 5.89
A173: Moules à muffin | D173: 1.29 | E173: 0 | F173: 24 | G173: 19.08 | H173: =G173/F173 -> 0.795 | I173: =1-(H173/J173) -> 0.3837209302 | J173: 1.29 | K173: 21317
A174: Moutarde | D174: 2.49 | E174: 0 | F174: 1 | G174: 1.48 | H174: 1.48 | I174: 0.40562249 | J174: 2.49 | K174: 60916
A175: Nouilles Instant. Bœuf 55gr | B175: Gattuso | D175: 2.15 | E175: 0 | F175: 12 | G175: 16.58 | H175: 1.381666667 | I175: 0.3573643411 | J175: 2.15 | K175: 10584
A176: Nouilles Instant. Poulet 55gr | B176: Gattuso | D176: 2.15 | E176: 0 | F176: 12 | G176: 16.58 | H176: 1.381666667 | I176: 0.3573643411 | J176: 2.15 | K176: 10585
A177: Nutella | D177: 6.15 | E177: 0 | F177: 1 | G177: 3.95 | H177: 3.95 | I177: 0.3577235772 | J177: 6.15 | K177: 62773
A178: Pâtes Coquilles (petites) | B178: Catelli | D178: 3.85 | E178: 0 | F178: 12 | G178: 29.62 | H178: 2.468333333 | I178: 0.3588744589 | J178: 3.85 | K178: 14285
A179: Pâtes Fettucine | B179: Catelli | D179: 3.99 | E179: 0 | F179: 1 | G179: 2.62 | H179: 2.62 | I179: 0.343358396 | J179: 3.99 | K179: 60956
A180: Pâtes Fusilli | B180: Catelli | D180: 4.09375 | E180: 0 | F180: 1 | G180: 2.62 | H180: 2.62 | I180: 0.36 | J180: =H180/0.64 -> 4.09375 | K180: 60392
A181: Pâtes Lasagne | B181: Catelli | D181: 5.19 | E181: 0 | F181: 1 | G181: 3.34 | H181: 3.34 | I181: 0.3564547206 | J181: 5.19 | K181: 60888
A182: Pâtes Macaroni coupé | B182: Catelli | D182: 4.09375 | E182: 0 | F182: 1 | G182: 2.62 | H182: 2.62 | I182: 0.36 | J182: =H182/0.64 -> 4.09375 | K182: 60894
A183: Pâtes Spaghetti | B183: Catelli | D183: 3.99 | E183: 0 | F183: 1 | G183: 2.62 | H183: 2.62 | I183: 0.343358396 | J183: 3.99 | K183: 60885
A184: Pâtes Spaghetti | B184: Primo | D184: 4.69 | E184: 0 | F184: 12 | G184: 31.84 | H184: 2.653333333 | I184: 0.434257285 | J184: 4.69 | K184: 17415
A185: Pâtes Spaghettini | B185: Catelli | D185: 3.99 | E185: 0 | F185: 1 | G185: 2.62 | H185: 2.62 | I185: 0.343358396 | J185: 3.99 | K185: 60892
A186: Pâtes Spaghettini | B186: Primo | D186: 4.69 | E186: 0 | F186: 12 | G186: 31.84 | H186: 2.653333333 | I186: 0.434257285 | J186: 4.69 | K186: 17409
A187: Poivre noir moulu 45gr | B187: MCCormick | D187: 8.99 | E187: 0 | F187: 6 | G187: 34.5 | H187: 5.75 | I187: 0.3604004449 | J187: 8.99 | K187: 1041
A188: Poudre à pâte 225gr | B188: Magic | D188: 4.99 | E188: 0 | F188: 1 | G188: 3.19 | H188: 3.19 | I188: 0.3607214429 | J188: 4.99 | K188: 60065
A189: Raisins secs sultana cello 375gr | B189: Wasco | D189: 3.89 | E189: 0 | F189: 1 | G189: 2.48 | H189: 2.48 | I189: 0.3624678663 | J189: 3.89 | K189: 60855
A190: Relish sucrée | D190: 2.39 | E190: 0 | F190: 1 | G190: 1.54 | H190: 1.54 | I190: 0.3556485356 | J190: 2.39 | K190: 60915
A191: Riz Uncle Bens | D191: =J191 -> 6.89 | E191: =C191*D191 -> 0 | F191: 1 | G191: 4.42 | H191: 4.42 | I191: 0.358490566 | J191: 6.89 | K191: 60831
A192: Sachet sauce Alfredo | B192: Past.Prima | D192: 2.55 | E192: 0 | F192: 12 | G192: 19.62 | H192: 1.635 | I192: 0.3588235294 | J192: 2.55 | K192: 27952
A193: Sauce à salade Miracle Whip | D193: 4.89 | E193: 0 | F193: 1 | G193: 3.15 | H193: 3.15 | I193: 0.3558282209 | J193: 4.89 | K193: 60917
A194: Sauce aux cerises 341ml | B194: VH | D194: 4.29 | E194: 0 | F194: 12 | G194: 31.61 | H194: 2.634166667 | I194: 0.385975136 | J194: 4.29 | K194: 10178
A195: Sauce aux prunes 341ml | B195: VH | D195: 4.29 | E195: 0 | F195: 1 | G195: 2.71 | H195: 2.71 | I195: 0.3682983683 | J195: 4.29 | K195: 60952
A196: Sauce BBQ rég. plastique 455ml | B196: Kraft | D196: 4.05 | E196: 0 | F196: 1 | G196: 2.6 | H196: 2.6 | I196: 0.3580246914 | J196: 4.05 | K196: 60973
A197: Sauce chili 455ml | B197: Heinz | D197: 6.55 | E197: 0 | F197: 1 | G197: 4.19 | H197: 4.19 | I197: 0.3603053435 | J197: 6.55 | K197: 62012
A198: Sauce en canne BBQ | B198: St-Hubert | D198: 2.85 | E198: 0 | F198: 24 | G198: 44.83 | H198: 1.867916667 | I198: 0.3445906433 | J198: 2.85 | K198: 89023
A199: Sauce en canne hot-chicken | B199: St-Hubert | D199: 2.85 | E199: 0 | F199: 24 | G199: 44.83 | H199: 1.867916667 | I199: 0.3445906433 | J199: 2.85 | K199: 14112
A200: Sauce en canne poutine | B200: St-Hubert | D200: 2.85 | E200: 0 | F200: 24 | G200: 44.83 | H200: 1.867916667 | I200: 0.3445906433 | J200: 2.85 | K200: 17313
A201: Sauce en canne trois poivres 284ml | B201: Cordon Bleu | D201: 3.5 | E201: 0 | F201: 1 | G201: 2.24 | H201: 2.24 | I201: 0.36 | J201: =H201/0.64 -> 3.5 | K201: 60997
A202: Sauce HP 250ml | B202: Heinz | D202: 3.99 | E202: 0 | F202: 1 | G202: 2.28 | H202: 2.28 | I202: 0.4285714286 | J202: 3.99 | K202: 60497
A203: Sauce sachet a la King | B203: St-Hubert | D203: 2.45 | E203: 0 | F203: 24 | G203: 37.38 | H203: 1.5575 | I203: 0.3642857143 | J203: 2.45 | K203: 71690
A204: Sauce sachet aux poivres | B204: St-Hubert | D204: 2.45 | E204: 0 | F204: 24 | G204: 37.38 | H204: 1.5575 | I204: 0.3642857143 | J204: 2.45 | K204: 17301
A205: Sauce sachet BBQ | B205: St-Hubert | D205: 2.45 | E205: 0 | F205: 24 | G205: 37.3 | H205: =G205/F205 -> 1.554166667 | I205: =1-(H205/J205) -> 0.3656462585 | J205: 2.45 | K205: 71005
A206: Sauce sachet hot-chicken | B206: St-Hubert | D206: 2.45 | E206: 0 | F206: 24 | G206: 37.38 | H206: 1.5575 | I206: 0.3642857143 | J206: 2.45 | K206: 71700
... 84 more rows

Sheet Pains
A1: La Calvette, Magasin Général de Landrienne, 819-727-9559
A2: Le prix inscrit est une indication que nous essayons de respecter, mais nous devons nous ajuster aux fluctuations au jour le jour.
A3: Desription #1 | B3: Desription #2 | C3: Qté | D3: Prix | E3: Total | K3: Qté
A4: Pain Gadoua | B4: Marque | C4: Qté | D4: Vendant
A5: Pain blanc à club 675gr | B5: Gadoua | D5: 3.59 | E5: =C5*D5 -> 0
A6: Pain brun à club 675gr | B6: Gadoua | D6: 3.59 | E6: =C6*D6 -> 0
A7: Pain blanc Italien 675gr | B7: Gadoua | D7: 3.59 | E7: 0
A8: Pain brun Italien 675gr | B8: Gadoua | D8: 3.59 | E8: 0
A9: Pain hamburger 6 un. | B9: Gadoua | D9: 3.49 | E9: 0
A10: Pain hamburger Crustini 8 un. | B10: Gadoua | D10: 3.69 | E10: =C10*D10 -> 0
A11: Pain hot-dog 6 un. | B11: Gadoua | D11: 3.19 | E11: 0
A12: Pain Country Blé 600gr | B12: Gadoua | D12: 3.79 | E12: 0
A13: Pain Country Blanc 600gr | B13: Gadoua | D13: 3.79 | E13: 0
A14: Pain Country 14 grains | B14: Gadoua | D14: 3.79 | E14: 0
A15: Pain blanc miche M.Doré | B15: Gadoua | D15: 3.79 | E15: 0
A16: Pain Français | B16: Menu | D16: 2.39 | E16: =C16*D16 -> 0
A17: Tortillas Casa Mendosa 640g | B17: Menu | D17: 4.69 | E17: 0
C18: Sous-total : | E18: =SUM(E5:E17) -> 0

Sheet Pr. Laitier
A1: La Calvette, Magasin Général de Landrienne, 819-727-9559
A2: Le prix inscrit est une indication que nous essayons de respecter, mais nous devons nous ajuster aux fluctuations au jour le jour.
A3: Desription #1 | B3: Desription #2 | C3: Qté | D3: Prix | E3: Total
A4: Produit laitier | C4: Qté | D4: Vendant | E4: Code | F4: Marque
A5: Natrel 1L 1% | D5: 2.99 | E5: =C5*D5 -> 0 | F5: 1021
A6: Natrel 2L 1% | D6: 5.09 | E6: =C6*D6 -> 0 | F6: 1022
A7: Natrel 4L 1% | D7: 8.99 | E7: 0 | F7: 1024
A8: Natrel 1L 2% | D8: 2.99 | E8: 0 | F8: 1011
A9: Natrel 2L 2% | D9: 5.09 | E9: 0 | F9: 1012
A10: Natrel 4L 2% | D10: 8.99 | E10: 0 | F10: 1014
A11: Natrel 1L 3,25% | D11: 2.99 | E11: 0 | F11: 1001
A12: Natrel 2L 3,25% | D12: 5.09 | E12: 0 | F12: 1002
A13: Natrel 4L 3,25% | D13: 8.99 | E13: 0 | F13: 1004
A14: Québon 473ml 2% | D14: 1.55 | E14: 0 | F14: 12301
A15: Sans Lactose 2L 2% | D15: 6.39 | E15: 0 | F15: 25501
A16: Lait chocolat Québon 473ml | D16: 2.19 | E16: 0 | F16: 18301
A17: Lait chocolat Québon1L carton | D17: 3.45 | E17: 0 | F17: 9401
A18: Lait chocolat Québon 2L plastique | D18: 6.39 | E18: 0 | F18: 10518
A19: Crème à café 10% Québon 473ml | D19: 3.79 | E19: 0 | F19: 22057
A20: Crème à cuisson 15% Québon 473ml | D20: 3.79 | E20: 0 | F20: 76055
A21: Crème à fouetter 35% Québon 473ml | D21: 5.39 | E21: 0 | F21: 24057
A22: Fromage cottage 2% 500gr | D22: 4.19 | E22: =C22*D22 -> 0
A23: Crème sure 14% Sealtest 250ml | D23: 2.9 | E23: 0 | F23: 626
A24: Yogourt Grec Vanille 2% IOGO 750gr | D24: 7.99 | E24: =C24*D24 -> 0
A25: Yogourt Fraise 0% IOGO 650gr | D25: 4.99 | E25: 0 | F25: 626
C26: Sous-total : | E26: =SUM(E5:E25) -> 0

Sheet Frais
A1: La Calvette, Magasin Général de Landrienne, 819-727-9559
A2: Le prix inscrit est une indication que nous essayons de respecter, mais nous devons nous ajuster aux fluctuations au jour le jour.
A3: Desription #1 | B3: Desription #2 | C3: Qté | D3: Prix | E3: Total | K3: Qté
A4: LÉGUMES
A5: Ail frais (3 un) | B5: Le prix de ces articles peut varier | D5: 1.99 | E5: =C5*D5 -> 0
A6: Betterave 2lb (Qc) | B6: Le prix de ces articles peut varier | D6: 3.1 | E6: =C6*D6 -> 0
A7: Brocoli | B7: Le prix de ces articles peut varier | D7: 4.53 | E7: 0
A8: Carotte 2lb | B8: Le prix de ces articles peut varier | D8: 3.99 | E8: 0
A9: Céleri | B9: Le prix de ces articles peut varier | D9: 4.8 | E9: 0
A10: Champignon 8oz (Canada) | B10: Le prix de ces articles peut varier | D10: 3.99 | E10: 0
A11: Chou vert | B11: Le prix de ces articles peut varier | D11: 4.8 | E11: 0
A12: Citron (1 un) | B12: Le prix de ces articles peut varier | D12: 1.1 | E12: 0
A13: Citron (6 un) | B13: Le prix de ces articles peut varier | D13: 6.45 | E13: 0
A14: Laitue Boston (Qc) | B14: Le prix de ces articles peut varier | D14: 4.29 | E14: 0
A15: Laitue Iceberg | B15: Le prix de ces articles peut varier | D15: 3.51 | E15: 0
A16: Navet/Rutabaga (Qc) | B16: Le prix de ces articles peut varier | D16: 4.7 | E16: 0
A17: Oignon jaune 2lb (Qc) | B17: Le prix de ces articles peut varier | D17: 1.99 | E17: 0
A18: Patate rouge sac 10 lb (Qc) | B18: Le prix de ces articles peut varier | D18: 8.56 | E18: 0
A19: Patate sac 10 lb (Qc) | B19: Le prix de ces articles peut varier | D19: 6.79 | E19: 0
A20: Piment rouge (Canada) prix à la livre | B20: Le prix de ces articles peut varier | D20: 4.99 | E20: 0
A21: Tomate rouge à l'unité | B21: Le prix de ces articles peut varier | D21: 1.42 | E21: 0
A23: FRUITS
A24: Banane Chiquita à l'unité | B24: Le prix de ces articles peut varier | D24: 0.99 | E24: =C24*D24 -> 0
A25: Orange Navel à l'unité | B25: Le prix de ces articles peut varier | D25: 0.75
A26: Orange Navel 4lb | B26: Le prix de ces articles peut varier | D26: 8.6 | E26: 0
A27: Pommes Mc Intosh (Qc) 3lb | B27: Le prix de ces articles peut varier | D27: 3.99 | E27: 0
C28: Sous-total : | E28: =SUM(E5:E27) -> 0

Sheet Eaux
A1: La Calvette, Magasin Général de Landrienne, 819-727-9559
A2: Le prix inscrit est une indication que nous essayons de respecter, mais nous devons nous ajuster aux fluctuations au jour le jour.
A3: Desription #1 | B3: Desription #2 | C3: Qté | D3: Prix | E3: Total | J3: Qté
A4: Eau
A5: ONIBI eau 18 litres | D5: 7.79 | E5: =C5*D5 -> 0
A6: ESKA EAU 12x500ml | D6: 4.99 | E6: =C6*D6 -> 0
A7: ESKA EAU 24x500ml | D7: 6.99 | E7: 0
A8: ESKA EAU 1x500ml | D8: 1.29 | E8: 0
A9: ESKA EAU 1x1LT | D9: 1.59 | E9: 0
A10: ESKA EAU 1x1,5LT | D10: 1.89 | E10: 0
A11: ESKA EAU 1x4LT | D11: 2.99 | E11: 0
A12: EAU GAZ. 1x355ml | D12: 1.59 | E12: 0
A13: EAU GAZ. CITRON 1x355ml | D13: 1.59 | E13: 0
A14: ESKA EAU GAZÉIFIÉE 1x750ml | D14: 2.59 | E14: 0
A15: ESKA EAU GAZÉIFIÉ CITRON 1x750ml | D15: 2.59 | E15: 0
A16: ESKA EAU GAZÉIFIÉ CANNEBERGE 1x750ml | D16: 2.59 | E16: 0
C17: Sous-total : | E17: =SUM(E5:E16) -> 0

Sheet Desserts
A1: La Calvette, Magasin Général de Landrienne, 819-727-9559
A2: Le prix inscrit est une indication que nous essayons de respecter, mais nous devons nous ajuster aux fluctuations au jour le jour.
A3: Desription #1 | B3: Desription #2 | C3: Qté | D3: Prix | E3: Total | K3: Qté
A4: Dessert comptoir
A5: Biscuit - Pqt 3 CHOCO/CANNEBERGE | D5: 2.49 | E5: =C5*D5 -> 0
A6: Biscuit - Pqt 3 DOUBLE CHOCO | D6: 2.49 | E6: 0
A7: Biscuit - Pqt 3 MACADAM | D7: 2.49 | E7: 0
A8: Biscuit - Pqt 3 RANDONNEUR | D8: 2.49 | E8: 0
A9: Biscuit - Pqt 6 CHOCO/CANNEBERGE | D9: 4.49 | E9: 0
A10: Biscuit - Pqt 6 DOUBLE CHOCO | D10: 4.49 | E10: 0
A11: Biscuit - Pqt 6 MACADAM | D11: 4.49 | E11: 0
A12: Biscuit - Pqt 6 RANDONNEUR | D12: 4.49 | E12: 0
A13: Les Beignes à Laly (pqt 3) | D13: 3.19 | E13: =C13*D13 -> 0
A14: Bretzel | D14: 4.29 | E14: 0
A15: Danoise avalanche choco | D15: 3.79 | E15: 0
A16: Galettes à la mélasse à l'unité | D16: 1.99 | E16: 0
A17: Macaron - Pqt de 3 | D17: 3.69 | E17: 0
A18: Macarons - Pqt de 6 | D18: 6.99 | E18: 0
A19: Macarons à l'unité | D19: 1.49 | E19: 0
A20: Sucre à la crème maison | D20: 1.49 | E20: 0
A22: Dessert réfrigéré - portion individuel
A23: Brownie chocolat Hollandais | D23: 2.99 | E23: =C23*D23 -> 0
A24: Carré aux dattes | D24: 2.69 | E24: 0
A25: Gâteau aux carottes | D25: 4.49 | E25: 0
A26: Gâteau sauce sucrée à la crème | D26: 3.69 | E26: 0
A27: Nanaïmo | D27: 1.49 | E27: 0
A28: Pouding chômeur | D28: 3.49 | E28: 0
A29: Tarte au sucre | D29: 2.99 | E29: 0
A30: Yogourt fruits et granola | D30: 4.59 | E30: 0
A32: Dessert réfrigéré - portion FAMILIALE
A33: Gâteau aux carottes La Calvette | D33: 10 | E33: =C33*D33 -> 0
A34: Gâteau McCain | D34: 7.85 | E34: 0
A35: Gâteau sauce sucrée à la crème La Calvette | D35: 10 | E35: 0
A36: Mille-feuilles | D36: 8.49 | E36: 0
A37: Pouding chômeur La Calvette | D37: 10 | E37: 0
A38: Tarte au chocolat | D38: 11.49 | E38: 0
A39: Tarte Squizz choco | D39: 14.59 | E39: 0
A41: Crème Glacé Coaticook
A42: Caramel | D42: 6.79 | E42: =C42*D42 -> 0
A43: Chocolat 2 litres | D43: 5.79 | E43: 0
A44: Erable et noix 2 litres | D44: 5.79 | E44: 0
A45: Fraise 2 litres | D45: 5.79 | E45: 0
A46: Framboise 2 litres | D46: 5.79 | E46: 0
A47: Fudge 2 litres | D47: 5.79 | E47: 0
A48: Vanille 2 litres | D48: 5.79 | E48: 0
C49: Sous-total : | E49: =SUM(E5:E48) -> 0

Sheet Breuvages
A1: La Calvette, Magasin Général de Landrienne, 819-727-9559
A2: Le prix inscrit est une indication que nous essayons de respecter, mais nous devons nous ajuster aux fluctuations au jour le jour.
A3: Desription #1 | B3: Desription #2 | C3: Qté | D3: Prix | E3: Total
A4: Jus | E4: =C4*D4 -> 0
A5: DOLE FRAISE-KIWI | B5: 1X 450ml | D5: 2.69 | E5: 0
A6: DOLE JUS DE POMME | B6: 1X 450ml | D6: 2.69 | E6: 0
A7: DOLE JUS D'ORANGE | B7: 1X 450ml | D7: 2.69 | E7: 0
A8: Jus d'ananas 960ml | D8: 2.75 | E8: 0
A9: Jus de pommes 960ml | D9: 2.75 | E9: 0
A10: Jus de raisins 8x200ml | D10: 4.79 | E10: 0
A11: Jus d'oranges 3x200ml | D11: 2.122222222 | E11: 0
A12: Jus d'oranges 960ml | D12: 2.75 | E12: =C12*D12 -> 0
A13: Jus Fruite Limonade 2 litres | D13: 3.49 | E13: 0
A14: Jus Fruite Orange 2 litres | D14: 3.49 | E14: 0
A15: Jus Minute Maide Orange 355ml | D15: 2.49 | E15: 0
A16: Jus Minute Maide Pomme 355ml | D16: 2.49 | E16: 0
A17: Jus orange 1,89lt Sunny Delight | D17: 4.99 | E17: 0
A18: Jus orange 500ml Sunny Delight | D18: 1.75 | E18: 0
A19: Jus Pomme pur 8x200ml | D19: 4.79 | E19: 0
A20: Jus pomme Rougemont 2 litres | D20: 5.3 | E20: 0
A21: Jus punch aux fruits 8x200ml | D21: 4.79 | E21: 0
A22: Jus Tropical Oasis 960ml | D22: 2.75 | E22: 0
A23: Jus Tropicana 355ml | D23: 2.49 | E23: 0
A24: OCEAN SPRAY RAISIN CANNEBERGE | B24: 1X 450ml | D24: 2.69 | E24: 0
A25: V8 Bouteille | D25: 2.018229167 | E25: 0
A26: V8 Canne | D26: 0.7994791667 | E26: 0
A28: Liqueur
A29: 7UP | B29: 1X Can 355ML | D29: 1.19 | E29: =C29*D29 -> 0
A30: 7UP | B30: 12 Can 355ml | D30: 6.49 | E30: 0
A31: 7UP | B31: 2L | D31: 3.29 | E31: 0
A32: 7UP | B32: 1 X 591ML Platique | D32: 2.49 | E32: 0
A33: 7UP DIÈTE | B33: 1 X 591ML Platique | D33: 2.49 | E33: 0
A34: 7UP DIÈTE | B34: 1X Can 355ML | D34: 1.19 | E34: 0
A35: 7UP DIÈTE | B35: 12 Can 355ml | D35: 6.49 | E35: 0
A36: 7UP DIÈTE | B36: 2L | D36: 3.29 | E36: 0
A37: BRISK FRAMBOISE | B37: 710ML CN 1/12 SW | D37: 2.79 | E37: 0
A38: BRISK H/H LIMONADE | B38: 710ML CN 1/12 SW | D38: 2.79 | E38: 0
A39: BRISK LIMONADE | B39: 591ML PL 1/24 (Q) | D39: 2.49 | E39: 0
A40: BRISK THÉ | B40: 473ML CN 1/12 (Q) | D40: 1.89 | E40: 0
A41: BRISK THÉ GLACÉ | B41: 591ML PL 1/24 (Q) | D41: 2.49 | E41: 0
A42: BRISK THÉ LIMONADE | B42: 710ML CN 1/12 (Q) | D42: 2.79 | E42: 0
A43: BRISK THÉ MELON D'EAU | B43: 710ML CN 1/12 SW | D43: 2.79 | E43: 0
A44: CANADA DRY 250ml plastique | D44: 1.29 | E44: 0
A45: CANADA DRY 500ml plastique | D45: 2.29 | E45: 0
A46: COCA-COLA 2 litres | D46: 3.29 | E46: 0
A47: COCA-COLA 237ml Vitre | B47: Coke | D47: 1.89 | E47: 0
A48: COCA-COLA 250ml plastique | D48: 1.29 | E48: 0
A49: COCA-COLA 500ml plastique | D49: 2.29 | E49: 0
A50: COCA-COLA diète 2 litres plastique | D50: 3.29 | E50: 0
A51: COCA-COLA diète 500ml plastique | D51: 2.29 | E51: 0
A52: COCA-COLA Énergy 310ml can | D52: 2.99 | E52: 0
A53: COCA-COLA zéro sucre 2 litres plastique | D53: 3.29 | E53: 0
A54: COCA-COLA zéro sucre 500ml plastique | D54: 2.29 | E54: 0
A55: CRUSH ORANGE | B55: 1 X 591ML Platique | D55: 2.49 | E55: 0
A56: CRUSH ORANGE | B56: 1X Can 355ML | D56: 1.19 | E56: 0
A57: CRUSH ORANGE | B57: 12 Can 355ml | D57: 6.49 | E57: 0
A58: CRUSH ORANGE | B58: 2L | D58: 3.29 | E58: 0
A59: CRUSH RAISIN | B59: 1 X 591ML Platique | D59: 2.49 | E59: 0
A60: CRUSH SODA MOUSSE | B60: 1 X 591ML Platique | D60: 2.49 | E60: 0
A61: CRUSH SODA MOUSSE | B61: 1X Can 355ML | D61: 1.19 | E61: =C61*D61 -> 0
A62: CRUSH SODA MOUSSE | B62: 12 Can 355ml | D62: 6.49 | E62: 0
A63: CRUSH SODA MOUSSE | B63: 2L | D63: 3.29 | E63: 0
A64: DR PEPPER | B64: 473ML CN 1/12 (Q) | D64: 1.89 | E64: 0
A65: DR PEPPER | B65: 591ML PL 1/24 (Q) | D65: 2.49 | E65: 0
A66: MOUNTAIN DEW | B66: 1X 473ml | D66: 2.79 | E66: 0
A67: MOUNTAIN DEW | B67: 1X 591ml | D67: 2.49 | E67: 0
A68: MOUNTAIN DEW BAJA BLAST | B68: 1X 591ml | D68: 2.49 | E68: 0
A69: MOUNTAIN DEW VOLTAGE | B69: 1X 591ml | D69: 2.49 | E69: 0
A70: MTN DEW KICK START MANGUE LIME | B70: 1X 473ml | D70: 2.79 | E70: 0
A71: MTN DEW KICK START ORANGE | B71: 1X 473ml | D71: 2.79 | E71: 0
A72: MTN DEW KICK START PUNCH FRUIT | B72: 1X 473ml | D72: 2.79 | E72: 0
A73: MTN DEW KICK START RAISIN | B73: 1X 473ml | D73: 2.79 | E73: 0
A74: MUG ROOT BEER | B74: 591ML PL 1/24 (Q) | D74: 2.49 | E74: 0
A75: PEPSI | B75: 1 X 591ML Platique | D75: 2.49 | E75: 0
A76: PEPSI | B76: 1X Can 355ML | D76: 1.19 | E76: 0
A77: PEPSI | B77: 12 Can 355ml | D77: 6.49 | E77: 0
A78: PEPSI | B78: 2L | D78: 3.29 | E78: 0
A79: PEPSI ZÉRO CALORIE (MAX) | B79: 1 X 591ML Platique | D79: 2.49 | E79: 0
A80: PEPSI DIÈTE | B80: 1 X 591ML Platique | D80: 2.49 | E80: 0
A81: PEPSI DIÈTE | B81: 1X Can 355ML | D81: 1.19 | E81: 0
A82: PEPSI DIÈTE | B82: 12 Can 355ml | D82: 6.49 | E82: 0
A83: PEPSI DIÈTE | B83: 2L | D83: 3.29 | E83: 0
A84: SCHWEPPES GINGER ALE | B84: 591ML PL 1/24 (Q) | D84: 2.49 | E84: 0
A85: SPRITE 2 litres plastique | D85: 3.29 | E85: 0
A86: SPRITE 500ml plastique | D86: 2.29 | E86: 0
A88: Bubly - Arto
A89: Eau Bubly Cerise 1X473ml | D89: 1.99 | E89: =C89*D89 -> 0
A90: Eau Bubly Citron 1X473ml | D90: 1.99 | E90: 0
A91: Eau Bubly Pamplemouse 1X473ml | D91: 1.99 | E91: 0
A92: EAU ARTO | B92: 1X 700ML | D92: 2.59 | E92: =C92*D92 -> 0
A94: FRAPPUCCINO 1x 405ML | E94: 0
A95: FRAPPUCCINO CARAMEL | D95: 3.05 | E95: 0
A96: FRAPPUCCINO MOKA | D96: 3.05 | E96: 0
A97: FRAPPUCCINO VANILLE | D97: 3.05 | E97: 0
E98: 0
A99: The Glacé
A100: LIPTON PURE LEAF FRAMBOISE | B100: 1X 547ML | D100: 2.79 | E100: 0
A101: Nestea citron 500ml | D101: 2.49 | E101: =C101*D101 -> 0
A102: PEACE TEA FIZZ Cerise coquine 695ml can | D102: 2.19 | E102: =C102*D102 -> 0
A103: PEACE TEA FIZZ Pêche 695ml can | D103: 2.19 | E103: =C103*D103 -> 0
A104: PEACE TEA FIZZ Thé vert/mangue 695ml can | D104: 2.19 | E104: =C104*D104 -> 0
A105: PEACE TEA FIZZ Fruisquet 695ml can | D105: 2.19 | E105: =C105*D105 -> 0
A107: Gatorade 710ml - 950ml - 591ml | E107: 0
A108: ARTIC FROST (TURQUOISE) | B108: 1X 710 ml | D108: 2.79 | E108: 0
A109: GATORADE CERISE GLACIALE | B109: 1X 710 ml | D109: 2.79 | E109: 0
A110: GATORADE CITRON-LIME | B110: 1X 710 ml | D110: 2.79 | E110: =C110*D110 -> 0
A111: GATORADE FRAISE-LIMONADE | B111: 1X 710 ml | D111: 2.79 | E111: 0
A112: GATORADE FRAMBOISE BLEUE | B112: 1X 710 ml | D112: 2.79 | E112: 0
A113: GATORADE G2 BLEUET POMMEGRENADE | B113: 1X 710 ml | D113: 2.79 | E113: 0
A114: GATORADE G2 RAISIN | B114: 1X 710 ml | D114: 2.79 | E114: 0
A115: GATORADE ORANGE | B115: 1X 710 ml | D115: 2.79 | E115: 0
A116: GATORADE POMME VERTE | B116: 1X 710 ml | D116: 2.79 | E116: 0
A117: GATORADE PUNCH AUX FRUITS | B117: 1X 710 ml | D117: 2.79 | E117: 0
A118: GLACIER FRAIS (BLEU PALE) | B118: 1X 710 ml | D118: 2.79 | E118: 0
A119: GLACIER STROM (ROSE) | B119: 1X 710 ml | D119: 2.79 | E119: 0
A120: GATORADE ARTIC FROST (TURQUOISE) | B120: 1X 950 ml | D120: 3.29 | E120: 0
A121: GATORADE CERISE GLACIALE (BLANC) | B121: 1X 950 ml | D121: 3.29 | E121: 0
A122: GATORADE FRAMBOISE BLEUE | B122: 1X 950 ml | D122: 3.29 | E122: 0
A123: GATORADE GLACIER FRAIS(BLEU PALE) | B123: 1X 950 ml | D123: 3.29 | E123: 0
A124: GATORADE GLACIER STROM (ROSE) | B124: 1X 950 ml | D124: 3.29 | E124: 0
A125: GATORADE ORANGE | B125: 1X 950 ml | D125: 3.29 | E125: 0
A126: GATORADE PUNCH AUX FRUITS | B126: 1X 950 ml | D126: 3.29 | E126: 0
A127: GATORADE RAISIN FRAIS | B127: 1X 950 ml | D127: 3.29 | E127: 0
A128: GATORADE G2 ORANGE | B128: 1X 591 ml | D128: 2.69 | E128: 0
A129: GATORADE G2 PUNCH AUX FRUITS | B129: 1X 591 ml | D129: 2.69 | E129: 0
A130: GATORADE G2 RAISIN | B130: 1X 591 ml | D130: 2.69 | E130: 0
A131: GATORADE G2 RAISIN | B131: 1X 591 ml | D131: 2.69 | E131: 0
A132: GATORADE G2 RAISIN | B132: 1X 591 ml | D132: 2.69 | E132: 0
A133: GATORADE G2 BLEUET POMMEGRENADE | B133: 1X 591 ml | D133: 2.69 | E133: 0
A135: Powerade
A136: POWERADE Mel.Baie 710ml | D136: 2.79 | E136: =C136*D136 -> 0
A137: POWERADE Mel.Baie 710ml | D137: 2.79 | E137: 0
A138: POWERADE Punch 710ml | D138: 2.79 | E138: 0
A139: POWERADE Orange 710ml | D139: 2.79 | E139: 0
A140: POWERADE Melon-ananas 710ml | D140: 2.79 | E140: 0
A141: POWERADE Raisin 710ml | D141: 2.79 | E141: 0
E142: 0
A143: Boisson Energisante | E143: 0
A144: RedBull 250ml | D144: 2.99 | E144: 0
A145: RedBull 355ml | D145: 3.95 | E145: 0
A146: RedBull 473ml | D146: 4.39 | E146: 0
A147: RedBull Sans-Sucre 473ml | D147: 3.95 | E147: 0
A148: AMP FOCUS BERRY (BLEU) | B148: 473ML CN 1/12 (Q) | D148: 2.99 | E148: =C148*D148 -> 0
A149: AMP POWER AGRUMES (VERT) | B149: 473ML CN 1/12 (Q) | D149: 2.99 | E149: 0
A150: Full throttle Citron 473ml | D150: 3.55 | E150: 0
A151: MONSTER Bleu 473ml | D151: 3.55 | E151: 0
A152: MONSTER Coffee 405ml | D152: 3.49 | E152: 0
A153: MONSTER Coffee Moka 405ml | D153: 3.49 | E153: 0
A154: MONSTER Coffee vanille 405ml | D154: 3.49 | E154: 0
A155: MONSTER Énergy Zero 473ml | D155: 3.55 | E155: 0
A156: MONSTER Khaos 473ml | D156: 3.55 | E156: 0
A157: MONSTER Punch 473ml | D157: 3.55 | E157: 0
A158: MONSTER Ultra Bl 473ml | D158: 3.55 | E158: 0
A159: MONSTER Ultra Rouge 473ml | D159: 3.55 | E159: 0
A160: MONSTER Vert Energy 473ml | D160: 3.55 | E160: 0
A161: MONSTER Vert Energy 710ml | D161: 3.99 | E161: 0
A162: MONSTER Zero cal. 473ml | D162: 3.55 | E162: 0
A163: MONSTER Assault 473ml | D163: 3.55 | E163: 0
A164: MONSTER Ultra sunrise 473ml | D164: 3.55 | E164: 0
A165: NOS 473ml | D165: 3.55 | E165: 0
A166: NOS Bleu 710ml | D166: 3.99 | E166: 0
A167: NOS Raisin 473ml | D167: 3.55 | E167: 0
A168: ROCKSTAR BLACK CHERRY | B168: 1 X 473ml Can | D168: 3.25 | E168: 0
A169: ROCKSTAR BLACKOUT | B169: 1 X 473ml Can | D169: 3.25 | E169: 0
A170: ROCKSTAR BURNER | B170: 1 X 473ml Can | D170: 3.25 | E170: 0
A171: ROCKSTAR ENERGY | B171: 1 X 473ml Can | D171: 3.25 | E171: 0
A172: ROCKSTAR PUNCH | B172: 1 X 473ml Can | D172: 3.25 | E172: 0
A173: ROCKSTAR PUREZERO MANDARINE | B173: 1 X 473ml Can | D173: 3.25 | E173: 0
A174: ROCKSTAR PUREZERO MELON | B174: 1 X 473ml Can | D174: 3.25 | E174: 0
A175: ROCKSTAR PUREZERO PUNCH | B175: 1 X 473ml Can | D175: 3.25 | E175: 0
A176: ROCKSTAR PUREZERO RAISIN | B176: 1 X 473ml Can | D176: 3.25 | E176: 0
A177: ROCKSTAR PUREZERO SILVER ICED | B177: 1 X 473ml Can | D177: 3.25 | E177: 0
A178: ROCKSTAR RECOVERY (JAUNE) | B178: 1 X 473ml Can | D178: 3.25 | E178: 0
A179: ROCKSTAR RECOVERY ORANGE | B179: 1 X 473ml Can | D179: 3.25 | E179: 0
A180: ROCKSTAR REVOLT FRAMBOISE BLEUE | B180: 1 X 473ml Can | D180: 3.25 | E180: 0
A181: ROCKSTAR REVOLT RAISIN | B181: 1 X 473ml Can | D181: 3.25 | E181: 0
A182: ROCKSTAR ROASTED MOKA | B182: 1 X 473ml Can | D182: 3.25 | E182: 0
A183: ROCKSTAR ROASTED VANILLE | B183: 1 X 473ml Can | D183: 3.25 | E183: 0
A184: ROCKSTAR SANS SUCRE | B184: 1 X 473ml Can | D184: 3.25 | E184: 0
A185: ROCKSTAR SUPER SOUR FRAISE | B185: 1 X 473ml Can | D185: 3.25 | E185: 0
A186: ROCKSTAR SUPER SOUR ORANGE | B186: 1 X 473ml Can | D186: 3.25 | E186: 0
A187: ROCKSTAR SUPER SOUR POMME VERTE | B187: 1 X 473ml Can | D187: 3.25 | E187: 0
A188: ROCKSTAR XD BARBE A PAPA | B188: 1 X 473ml Can | D188: 3.25 | E188: 0
A189: ROCKSTAR XD FRAMBOISE BLEUE | B189: 1 X 473ml Can | D189: 3.25 | E189: 0
A190: ROCKSTAR XD GUIMAUVE | B190: 1 X 473ml Can | D190: 3.25 | E190: 0
A191: ROCKSTAR XD POMME VERTE | B191: 1 X 473ml Can | D191: 3.25 | E191: 0
A193: MUSCLE MILK 1X 414ml | E193: =C193*D193 -> 0
A194: MUSCLE MILK BANANE | D194: 3.99 | E194: =C194*D194 -> 0
A195: MUSCLE MILK CHOCOLAT | D195: 3.99 | E195: =C195*D195 -> 0
A196: MUSCLE MILK VANILLE PRO 40 | D196: 3.99 | E196: =C196*D196 -> 0
C197: Sous-total : | E197: =SUM(E5:E196) -> 0

Sheet Friandises
A1: La Calvette, Magasin Général de Landrienne, 819-727-9559
A2: Le prix inscrit est une indication que nous essayons de respecter, mais nous devons nous ajuster aux fluctuations au jour le jour.
A3: Desription #1 | B3: Desription #2 | C3: Qté | D3: Prix | E3: Total | K3: Qté
A4: Pop Corn frais La Calvette
A5: Pop Corn frais La Calvette | D5: 1.74 | E5: =D5*C5 -> 0
A7: CHIPS PRINGLE | E7: 0
A8: Original 148gr | D8: 3.79 | E8: 0
A9: BBQ 156gr | D9: 3.79 | E9: 0
A10: Ketchup 156gr | D10: 3.79 | E10: 0
A11: Sel et Vinaigre 156gr | D11: 3.79 | E11: 0
A13: CHIPS FRITO LAY
A14: Cheetos croquant 310gr | D14: 4.19 | E14: 0
A15: Cheetos soufflés 280gr | D15: 4.19 | E15: 0
A16: Chester's au fromage 150gr | D16: 2 | E16: 0
A17: Chester's Nature 150gr | D17: 2 | E17: 0
A18: Doritos BBQ 255gr | D18: 4.19 | E18: 0
A19: Doritos Fromage Nacho 255gr | D19: 4.19 | E19: 0
A20: Doritos Fromage Nacho 255gr | D20: 4.19 | E20: 0
A21: Lay's BBQ 180gr | D21: 3.29 | E21: 0
A22: Lay's Ketchup 180gr | D22: 3.29 | E22: 0
A23: Lay's Nature 180gr | D23: 3.29 | E23: 0
A24: Lay's Sel & Vinaigre 180gr | D24: 3.29 | E24: 0
A25: Lay's Stax BBQ 163gr | D25: 2.29 | E25: 0
A26: Lay's Stax Cheddar 163gr | D26: 2.29 | E26: 0
A27: Lay's Stax Original 163gr | D27: 2.29 | E27: 0
A28: Lay's Stax Sel et Vinaigre 163gr | D28: 2.29 | E28: 0
A29: Miss Vickie's Nature 200gr | D29: 4.19 | E29: 0
A30: Miss Vickie's Sel & Vinaigre 200gr | D30: 4.19 | E30: 0
A31: Ruffles Assaisonnées 200gr | D31: 3.99 | E31: 0
A32: Ruffles BBQ 200gr | D32: 3.99 | E32: 0
A33: Ruffles Crème sure et oignon 200gr | D33: 3.99 | E33: 0
A34: Ruffles Nature 200gr | D34: 3.99 | E34: 0
A35: Sauce Ruffles Trempette d'oignon 425g | D35: 4.29 | E35: 0
A36: Sauce Ruffles Trempette Ranch 425g | D36: 4.29 | E36: 0
A37: Sauce Tostitos Salsa Douce 418ml | D37: 4.29 | E37: =D37*C37 -> 0
A38: Sauce Tostitos Salsa Médium 418ml | D38: 4.29 | E38: 0
A39: Sauce Tostitos Sauce au fromage 418ml | D39: 4.29 | E39: 0
A40: Tostitos Scoops 215gr | D40: 3.89 | E40: 0
A42: CHIPS OLD DUTCH | E42: 0
A43: Arriba Fromage Nacho 245gr | D43: 3.99 | E43: 0
A44: Humpty Dumpty Baton.Fromage 265gr | D44: 3.99 | E44: 0
A45: Humpty Dumpty Cruncheez 290gr | D45: 3.99 | E45: 0
A46: Humpty Dumpty Ringolos BBQ 280gr | D46: 3.99 | E46: 0
A47: Old Dutch BBQ 180gr | D47: 3.99 | E47: 0
A48: Old Dutch Ketchup 180gr | D48: 3.99 | E48: 0
A49: Old Dutch Nature 180gr | D49: 3.99 | E49: 0
A50: Old Dutch Rip-L 180gr | D50: 3.99 | E50: 0
A51: Old Dutch Rip-L Légèrement salées 180gr | D51: 3.99 | E51: 0
A52: Old Dutch Sel & Vinaigre 180gr | D52: 3.99 | E52: 0
A54: CHOCOLAT RÉGULIER | E54: 0
A55: Aero | D55: 1.59 | E55: 0
A56: Aero Menthe | D56: 1.59 | E56: 0
A57: Aero Noir | D57: 1.59 | E57: 0
A58: After Eight | D58: 1.59 | E58: 0
A59: Bounty | D59: 1.59 | E59: 0
A60: Caramilk | D60: 1.59 | E60: 0
A61: Cherry Blossom | D61: 1.59 | E61: 0
A62: Chunly Car | D62: 1.59 | E62: 0
A63: Coffee Crisp | D63: 1.59 | E63: 0
A64: Crunchie | D64: 1.59 | E64: 0
A65: Dairy Milk | D65: 1.59 | E65: 0
A66: Glosette Amande | D66: 1.59 | E66: 0
A67: Glosette Raisin | D67: 1.59 | E67: 0
A68: Hershey Creme | D68: 1.59 | E68: 0
A69: Hershey Gold | D69: 1.59 | E69: =D69*C69 -> 0
A70: Hershey Lait | D70: 1.59 | E70: 0
A71: Kit Kat | D71: 1.59 | E71: 0
A72: Malterress | D72: 1.59 | E72: 0
A73: Mars | D73: 1.59 | E73: 0
A74: Mars Noir | D74: 1.59 | E74: 0
A75: Mirage | D75: 1.59 | E75: 0
A76: Mr. Big | D76: 1.59 | E76: 0
A77: Œuf Cadbury | D77: 1.95 | E77: 0
A78: Œuf Kinder | D78: 1.95 | E78: 0
A79: Œuf Kinder Fille | D79: 1.95 | E79: 0
A80: Oh Henry | D80: 1.59 | E80: 0
A81: Reese Extrav. | D81: 1.59 | E81: 0
A82: Reese Reg | D82: 1.59 | E82: 0
A83: Rocher | D83: 1.59 | E83: 0
A84: Rolo | D84: 1.59 | E84: 0
A85: Smarties | D85: 1.59 | E85: 0
A86: Snickers | D86: 1.59 | E86: 0
A87: Turtle 3 mcx | D87: 1.59 | E87: 0
A88: Wunderbar | D88: 1.59 | E88: 0
A89: Chocolat en barre M&M | D89: 3.79 | E89: 0
A90: M&M Chocolat au lait 120gr | D90: 3.99 | E90: 0
A92: MARCHAND | E92: =D92*C92 -> 0
A93: Macarons au chocolat 300gr Marchand | D93: 3.99 | E93: 0
A94: Chocolat Arc-en-ciel Yummies 300gr Marchand | D94: 4.49 | E94: 0
A96: GOMME Dentine Ice | E96: 0
A97: Avalance | D97: 1.35 | E97: 0
A98: Fire canelle | D98: 1.35 | E98: 0
A99: Frisson | D99: 1.35 | E99: 0
A100: Intense | D100: 1.35 | E100: 0
A101: Menthe poivré | D101: 1.35 | E101: 0
A102: Menthe verte | D102: 1.35 | E102: 0
A103: Minuit | D103: 1.35 | E103: 0
A104: Menthe Iceberg | D104: 1.35 | E104: 0
A105: Menthe Glacière | D105: 1.35 | E105: 0
A107: GOMME autre | E107: =D107*C107 -> 0
A108: Trident Mel-Fra - Splash | D108: 1.35 | E108: 0
A109: Doublement Wrigley | D109: 1.89 | E109: 0
A111: GOMME Excel | E111: 0
A112: Inferno Canelle | D112: 1.55 | E112: 0
A113: Polar Ice | D113: 1.55 | E113: 0
A114: Spearmint Verte | D114: 1.55 | E114: 0
A115: Strong Menthe | D115: 1.55 | E115: 0
A116: Winteerfresh Glacé | D116: 1.55 | E116: 0
A117: Menthe S.Sucre Bleu | D117: 1.55 | E117: 0
A118: Balloune | D118: 1.55 | E118: 0
A119: Chlorophyle | D119: 1.55 | E119: 0
A121: Juicy Fruit | E121: 0
A122: Juicy F. Balloune | D122: 1.29 | E122: 0
A123: Juicy F. Or. | D123: 1.77 | E123: 0
A124: Juicy F. Bout Tend | D124: 2.29 | E124: 0
A125: Trident Splash | D125: 1.45 | E125: 0
A126: Excel (petite menthe) | D126: 1.49 | E126: =D126*C126 -> 0
A128: Bubblicious | E128: 0
A129: Raisin | D129: 0.99 | E129: 0
A130: Hubbahubba Max | D130: 1.19 | E130: 0
A132: GOMME en Bouteille | E132: 0
A133: Menthe Polaire | D133: 5.35 | E133: 0
A134: Menthe Verte | D134: 5.35 | E134: 0
A135: Juicy Fruit | D135: 5.35 | E135: 0
A136: Juicy Fruit Mix | D136: 5.35 | E136: 0
A137: Trident Vibe | D137: 4.95 | E137: 0
A138: Dentyne Fire | D138: 4.49 | E138: 0
A139: Vibe Trop. | D139: 4.95 | E139: 0
A140: Vibe Menthe Poiv | D140: 4.95 | E140: 0
A142: BONBONS | E142: 0
A143: Skittles Sucré et Sure 191gr | D143: 4.19 | E143: 0
A144: Skittles Baie 191gr | D144: 4.19 | E144: 0
A145: Skittles Fruits Tropicaux 191gr | D145: 4.19 | E145: 0
A146: Skittles Originaux 191gr | D146: 4.19 | E146: 0
A148: Gros Sac Bonbon Sweet Sixteen 400g Mondoux | E148: 0
A149: Bonbon Sac Original Sixteen 400gr | D149: 5.19 | E149: 0
A150: Bonbon Sac Gummy Sweet Sixteen 400gr | D150: 5.19 | E150: 0
A151: Bonbon Sac Réglisse Sweet Sixteen 400gr | D151: 5.19 | E151: 0
A152: Bonbon Sac Sucré/Surette Sweet Sixteen 400gr | D152: 5.19 | E152: 0
A154: Bonbon Gobelet 175g Mondoux | E154: 0
A155: Bonbon gummy gobelet 3d Ours gel | D155: 3.49 | E155: 0
A156: Bonbon gummy gobelet Anneau pêche | D156: 3.49 | E156: 0
A157: Bonbon gummy gobelet Brique 6 couleurs | D157: 3.49 | E157: 0
A158: Bonbon gummy gobelet Chips A/E/C | D158: 3.49 | E158: =D158*C158 -> 0
A159: Bonbon gummy gobelet Fraise sauvage | D159: 3.49 | E159: 0
A160: Bonbon gummy gobelet Framboise lunaire | D160: 3.49 | E160: 0
A161: Bonbon gummy gobelet Framboise rouge | D161: 3.49 | E161: 0
A162: Bonbon gummy gobelet Grenouille | D162: 3.49 | E162: 0
A163: Bonbon gummy gobelet Jujube mix | D163: 3.49 | E163: 0
A164: Bonbon gummy gobelet Mélange surette | D164: 3.49 | E164: 0
A165: Bonbon gummy gobelet Pied rouge | D165: 3.49 | E165: 0
A166: Bonbon gummy gobelet Réglisse ass. | D166: 3.49 | E166: 0
A167: Bonbon gummy gobelet Suce surette | D167: 3.49 | E167: 0
A168: Hosties Regal 100un | D168: 1.25 | E168: 0
A170: Confiserie Abitibi Bonbon | E170: 0
A171: Ceintures Néon (Réglisse plate) 150gr Conf.Abitibi | D171: 2.99 | E171: 0
A172: Clés sures 160gr Conf.Abitibi | D172: 2.99 | E172: 0
A173: Invasion de fruit 190gr Conf.Abitibi | D173: 2.99 | E173: 0
A174: Mûres Suédoises 190gr Conf.Abitibi | D174: 2.99 | E174: 0
A175: Nombrils 180gr Conf.Abitibi | D175: 2.99 | E175: 0
A176: Réglisse crème Rouge ou bleu 150gr Conf.Abitibi | D176: 2.99 | E176: 0
A177: Roches sures 180gr Conf.Abitibi | D177: 2.99 | E177: 0
A179: Pastilles Halls
A180: Bleu Lyptus | D180: 1.75 | E180: =C180*D180 -> 0
A181: Centre cerise | D181: 1.75 | E181: 0
A182: Cerise | D182: 1.75 | E182: 0
A183: Cerise noir | D183: 1.45 | E183: 0
A184: Cerise Noir S-Sucre | D184: 1.45 | E184: 0
A185: Extra-Fort | D185: 1.75 | E185: 0
A186: Mentho-Lyp ment vert | D186: 1.75 | E186: 0
A187: Vitamine C Agrum S-S | D187: 1.75 | E187: 0
A188: Vitamine C Agrum Ass | D188: 1.75 | E188: 0
A189: Vitamine C Grena-Agrum | D189: 1.75 | E189: 0
A191: Pastilles Fisherman
A192: Agrume | D192: 2.29 | E192: =C192*D192 -> 0
A193: Cesise S.Sucre | D193: 2.29 | E193: =C193*D193 -> 0
A194: Extra Fort | D194: 2.29 | E194: =C194*D194 -> 0
A195: Menthe | D195: 2.29 | E195: =C195*D195 -> 0
A196: Reg | D196: 2.29 | E196: =C196*D196 -> 0
A198: Pastilles Vick's
A199: Cerise | D199: 1.19 | E199: =C199*D199 -> 0
A200: Orange | D200: 1.19 | E200: =C200*D200 -> 0
C201: Sous-total : | E201: =SUM(E5:E200) -> 0

Sheet Noix +Pepper.
A1: La Calvette, Magasin Général de Landrienne, 819-727-9559
A2: Le prix inscrit est une indication que nous essayons de respecter, mais nous devons nous ajuster aux fluctuations au jour le jour.
A3: Desription #1 | B3: Desription #2 | C3: Qté | D3: Prix | E3: Total | K3: Qté
A4: Noix
A5: Graine de tournesol Assais. 210gr Spritz | D5: 2.49 | E5: =D5*C5 -> 0
A6: Graine de tournesol Salées 210gr Spritz | D6: 2.49 | E6: 0
A7: Graine de tournesol Corn. aneth 210gr Spritz | D7: 2.49 | E7: 0
A8: Graine de tournesol Au poivre 210gr Spritz | D8: 2.49 | E8: 0
A9: Noix d'acajous salés 90gr Conf.Abitibi | D9: 3.99 | E9: 0
A10: Noix d'acajous BBQ 90gr Conf.Abitibi | D10: 3.99 | E10: 0
A11: Amandes fumées 140gr Conf.Abitibi | D11: 3.99 | E11: 0
A12: Arachides BBQ 160gr Conf.Abitibi | D12: 1.99 | E12: 0
A13: Menthes Roses 140gr Conf.Abitibi | D13: 1.99 | E13: 0
E14: 0
A15: Pepperette | E15: 0
A16: Pepperoni mini Doux 250gr Mondoux | D16: 9.99 | E16: 0
A17: Pepperoni mini Piquant 260gr Mondoux | D17: 9.99 | E17: 0
A18: Pepperette Doux 10un Conf.Abitibi | D18: 9.99 | E18: 0
A19: Pepperette Fort 10un Conf.Abitibi | D19: 9.99 | E19: 0
A20: Pepperette Fort 911 10un Conf.Abitibi | D20: 9.99 | E20: 0
A21: Pepperette Miel & Ail 10un Conf.Abitibi | D21: 9.99 | E21: 0
A22: Pepperette Pepperoni 10un Conf.Abitibi | D22: 9.99 | E22: 0
A23: Pepperette Teriyaki 10un Conf.Abitibi | D23: 9.99 | E23: 0
A24: Pepperette Sriracha 10un Conf.Abitibi | D24: 9.99 | E24: 0
A25: Pepperette Salami 10un Conf.Abitibi | D25: 9.99 | E25: 0
C26: Sous-total : | E26: =SUM(E5:E25) -> 0

Sheet Bières+Alcomalts
A1: La Calvette, Magasin Général de Landrienne, 819-727-9559
A2: Le prix inscrit est une indication que nous essayons de respecter, mais nous devons nous ajuster aux fluctuations au jour le jour.
A3: Desription #1 | B3: Desription #2 | C3: Qté | D3: Prix | E3: Total
A4: Biere+Alcomalt
A5: Belgian Mangue | B5: Can 473ml | D5: 3.49 | E5: =C5*D5 -> 0
A6: Belgian Moon | B6: Can 473ml | D6: 3.49 | E6: 0
A7: Belgian Moon | B7: 12 Can X 355ml | D7: 17.99 | E7: 0
A8: Black Label | B8: Cane 710ml | D8: 3.25 | E8: 0
A9: Black Label | B9: 20 Can | D9: 26.99 | E9: 0
A10: Black Label | B10: 30 Can | D10: 37.99 | E10: 0
A11: Black Label | B11: 12 Bout | D11: 15.99 | E11: 0
A12: Black Label | B12: 4X6 Can | D12: 8.99 | E12: 0
A13: Black Label | B13: 12 Can X 355ml | D13: 15.99 | E13: 0
A14: Black Label Dry | B14: 4X6 Can | D14: 8.99 | E14: 0
A15: Labatt Bleu | B15: 12 Can X 355ml | D15: 18.99 | E15: 0
A16: Bud Light | B16: 4X6 Can | D16: 11.99 | E16: 0
A17: Bud Light | B17: Can 473ml | D17: 3.19 | E17: 0
A18: Bud Light | B18: 12 Can X 355ml | D18: 18.99 | E18: 0
A19: Bud Light | B19: 30 Can | D19: 40.99 | E19: 0
A20: Bud Light | B20: Cane 710ml | D20: 4.49 | E20: 0
A21: Bud Light Pample. | B21: Can 473ml | D21: 3.39 | E21: 0
A22: Bud Lime | B22: 12 Bout | D22: 19.99 | E22: 0
A23: Bud Lime | B23: 12 Can X 355ml | D23: 19.99 | E23: 0
A24: Bud Prohibition | B24: Can 473ml | D24: 3.49 | E24: 0
A25: Bud Prohibition | B25: 12 Can X 355ml | D25: 15.99 | E25: 0
A26: Budweiser | B26: Can 473ml | D26: 3.19 | E26: 0
A27: Budweiser | B27: 4X6 Can | D27: 11.99 | E27: 0
A28: Budweiser | B28: 12 Can X 355ml | D28: 18.99 | E28: 0
A29: Budweiser | B29: Cane 710ml | D29: 4.25 | E29: 0
A30: Budweiser | B30: 30 Can | D30: 40.99 | E30: 0
A31: Molson Canadian | B31: 20 Can | D31: 27.99 | E31: 0
A32: Molson Canadian | B32: 30 Can | D32: 38.99 | E32: 0
A33: Molson Canadian | B33: Can 473ml | D33: 3.25 | E33: 0
A34: Molson Canadian | B34: 12 Can X 355ml | D34: 16.99 | E34: 0
A35: Clamato Chela | B35: 4X6 Can | D35: 13.99 | E35: 0
A36: Clamato Chela | B36: 12 Can X 355ml | D36: 21.99 | E36: =C36*D36 -> 0
A37: Coors | B37: 4X6 Can | D37: 9.99 | E37: 0
A38: Coors | B38: 12 Can X 355ml | D38: 16.99 | E38: 0
A39: Coors | B39: 20 Can | D39: 26.99 | E39: 0
A40: Coors | B40: 30 Can | D40: 36.99 | E40: 0
A41: Coors | B41: 36 Can | D41: 43.99 | E41: 0
A42: Coors | B42: Cane 710ml | D42: 4.05 | E42: 0
A43: Coors (10) | B43: Can 473ml | D43: 3.25 | E43: 0
A44: Coors Edge 5% | B44: 12 Can X 355ml | D44: 16.99 | E44: 0
A45: Corona | B45: 12 Bout | D45: 22.49 | E45: 0
A46: Corona Light | B46: 12 Bout | D46: 22.49 | E46: 0
A47: Corona Sleek | B47: 12 Can X 355ml | D47: 22.99 | E47: 0
A48: Heineken | B48: 12 Can X 355ml | D48: 21.99 | E48: 0
A49: Heineken 1x12 | B49: 12 Bout | D49: 22.99 | E49: 0
A50: Heineken 500 | B50: Can 500ml | D50: 3.89 | E50: 0
A51: Labbat '50 | B51: 12 Can X 355ml | D51: 18.99 | E51: 0
A52: Mad Jack Pomme | B52: Can 473ml | D52: 3.59 | E52: 0
A53: Mad Jack Punch | B53: Can 473ml | D53: 3.59 | E53: 0
A54: Madjack Pomme | B54: 12 Can X 355ml | D54: 20.99 | E54: 0
A55: Molson Dry | B55: 4X6 Can | D55: 9.99 | E55: 0
A56: Molson Dry | B56: Can 473ml | D56: 3.25 | E56: 0
A57: Molson Dry | B57: 12 Can X 355ml | D57: 16.99 | E57: 0
A58: Molson Dry | B58: Cane 710ml | D58: 4.05 | E58: 0
A59: Molson Dry | B59: 20 Can | D59: 27.99 | E59: 0
A60: Molson Dry | B60: 30 Can | D60: 38.99 | E60: 0
A61: Molson Ex | B61: Can 473ml | D61: 3.25 | E61: 0
A62: Molson Ex | B62: 30 Can | D62: 38.99 | E62: 0
A63: Molson Export | B63: 12 Can X 355ml | D63: 16.99 | E63: 0
A64: Molson Export | B64: 20 Can | D64: 27.99 | E64: 0
A65: Molson Ultra | B65: 12 Can X 355ml | D65: 19.99 | E65: 0
A66: Pabs 5.9 % 12 Can | B66: 12 Can X 355ml | D66: 14.99 | E66: 0
A67: Pabs Light 4% 6 CanX | B67: 4X6 Can | D67: 6.99 | E67: 0
A68: Pabst 12 Cans | B68: 12 Can X 355ml | D68: 14.99 | E68: =C68*D68 -> 0
A69: Pabst 6 Cans | B69: 4X6 Can | D69: 6.99 | E69: 0
A70: Rickard's Red | B70: 12 Can X 355ml | D70: 16.99 | E70: 0
A71: Sleeman 12 Can Selec | B71: 12 Can X 355ml | D71: 16.99 | E71: 0
A72: Sleeman Clear 12 cans | B72: 12 Can X 355ml | D72: 16.99 | E72: 0
A73: Sleeman Clear 20 Can | B73: 20 Can | D73: 24.99 | E73: 0
A74: Sleeman Drauht 12 can | B74: 12 Can X 355ml | D74: 16.99 | E74: 0
A75: Sleeman Ipa 12 can | B75: 12 Can X 355ml | D75: 16.99 | E75: 0
A76: Sleeman Light - 12 Can | B76: 12 Can X 355ml | D76: 16.99 | E76: 0
A78: Prospecteur 950ml
A79: Tête de Pioche | D79: 11.75 | E79: =C79*D79 -> 0
A80: Blanche | D80: 10.75 | E80: =C80*D80 -> 0
A81: Blonde | D81: 10.75 | E81: 0
A82: Rousse | D82: 10.75 | E82: 0
A83: Noire | D83: 10.75 | E83: 0
A85: Microbrasserie
A86: A tout le Monde - 12 Bout | D86: 17.99 | E86: 0
A87: A tout le Monde - 1X 473ml | D87: 3.79 | E87: 0
A88: A tout le Monde - 4X 473ml | D88: 11.99 | E88: 0
A89: Autre Chose IPA 4X473 ml | D89: 12.99 | E89: 0
A90: Autre Chose Ses Ale 1X 473ml | D90: 3.79 | E90: 0
A91: Autre Chose Ses Ale 4X 473ml | D91: 12.99 | E91: 0
A92: Autrechose IPA Can 1 X 473ml | D92: 3.79 | E92: 0
A93: Blanche Chambly 1X473ml | D93: 3.49 | E93: 0
A94: Blanche Chambly 4X473ml | D94: 12.99 | E94: 0
A95: Blanche de Chamby - | D95: 17.99 | E95: 0
A96: Éphémère Cassis 6 Bout | B96: 6 Bouteilles | D96: 11.99 | E96: 0
A97: Éphémère Pommes 6 Bout | B97: 6 Bouteilles | D97: 11.99 | E97: 0
A98: GIB Eng Bay Ale | B98: Can 1X473ml | D98: 3.29 | E98: 0
A99: GIB Eng Bay Ale | B99: Can 4X473ml | D99: 12.99 | E99: 0
A100: Gib Wescost IPA | B100: Can 1X473ml | D100: 3.29 | E100: 0
A101: Gib Wescost IPA | B101: Can 4X473ml | D101: 12.99 | E101: 0
A102: Grand Ville Nortwest | B102: Can 1X473ml | D102: 3.29 | E102: 0
A103: Grand Ville Nortwest | B103: Can 4X473ml | D103: 12.99 | E103: 0
A104: L'Amer IPA | B104: Can 1X473ml | D104: 3.29 | E104: 0
A105: L'Amer IPA | B105: Can 4X473ml | D105: 12.99 | E105: 0
A106: Saison 13 Megadeth 1x473ml | D106: 3.79 | E106: 0
A107: Saison 13 Megadeth 4x473ml | D107: 12.99 | E107: =C107*D107 -> 0
A108: Unibroue Collection 12 Bout | D108: 17.99 | E108: 0
A110: Troue Du Diable Bout 600ml
A111: La saison du tracteur | D111: 5.89 | E111: 0
A112: La Blanche de Shawi | D112: 6.59 | E112: 0
A113: La Pitoune | D113: 5.89 | E113: 0
A115: Troue Du Diable Bout 750ml
A116: Dulci Succubus | D116: 19.99 | E116: 0
A117: L'ours | D117: 16.19 | E117: 0
A119: Troue Du Diable Bout 473ml
A120: L'Apocalypso | B120: Can 1X473ml | D120: 4.49 | E120: 0
A121: L'Apocalypso | B121: Can 4X473ml | D121: 15.99 | E121: 0
A122: Mactavish | B122: Can 1X473ml | D122: 3.89 | E122: 0
A123: Mactavish | B123: Can 4X473ml | D123: 14.99 | E123: 0
A124: Shawibeach | B124: Can 1X473ml | D124: 4.49 | E124: 0
A125: Shawibeach | B125: Can 4X473ml | D125: 15.99 | E125: 0
A126: Superpils | B126: Can 1X473ml | D126: 3.89 | E126: 0
A127: Superpils | B127: Can 4X473ml | D127: 14.99 | E127: 0
A129: La Bit à Tibi Can 568ml
A130: White | D130: 2.99 | E130: 0
A131: Blonde | D131: 2.99 | E131: 0
A132: Pale | D132: 2.99 | E132: 0
A134: Alcomalt
A135: Palm Bay 12Can | B135: 12 Can 1X12 | D135: 20.49 | E135: 0
A137: Palm Bay 1X 473ml
A138: Anana+Mandarine | D138: 3.95 | E138: 0
A139: Anana+Fraise | D139: 3.95 | E139: =C139*D139 -> 0
A141: Beach Bay 1X 473ml
A142: Punch fruit | D142: 3.95 | E142: 0
A143: Agrume | D143: 3.95 | E143: 0
A145: Palm Bay 4X6 can
A146: Anana+Mandarine | D146: 13.99 | E146: 0
A147: Fraise + Anana | D147: 13.99 | E147: 0
A148: Mangue | D148: 13.99 | E148: 0
A150: Smirnoff Ice Can 1X 473m
A151: Smirnoff Ice Can 473m | D151: 3.29 | E151: 0
A152: Smirnoff Enc. Berry | D152: 3.29 | E152: 0
A153: Smirnoff Sangria Roug | D153: 3.29 | E153: 0
A154: Smirnoff Sangria Blanc | D154: 3.29 | E154: 0
A155: Smirnoff Fusion Cit+Li | D155: 3.29 | E155: 0
A156: Smirnoff Fus Cer+lim 4 | D156: 3.29 | E156: 0
A158: Smirnoff Ice Can 6X 355m
A159: Smirnoff Enc Framb 6 | D159: 12.99 | E159: 0
A160: Smirnoff Enc Fram 6 C | D160: 12.99 | E160: 0
A161: Smirnoff Ice Framb 6x3 | D161: 12.99 | E161: 0
A162: Smirnoff Ice Enc. Pech | D162: 12.99 | E162: 0
A163: Smirnoff Ice Baies Sau | D163: 12.99 | E163: 0
A164: Smirnoff Ice Melon d'e | D164: 12.99 | E164: 0
A165: Smirnoff Ice Enc. Or. - | D165: 12.99 | E165: 0
A167: Poppers 1X 473ml
A168: Popper Ice Rocket 473ml | D168: 3.29 | E168: 0
A169: Popper Hard Ice 473ml | D169: 3.29 | E169: 0
A170: Breezer Bacardie Fraise 473 ml | D170: 3.29 | E170: 0
A171: Breezer Bacardie Ananas 473 ml | D171: 3.29 | E171: =C171*D171 -> 0
A172: ClubTails Colada 1 X473ml | D172: 3.29 | E172: 0
A173: ClubTails Margarita 1 X473ml | D173: 3.29 | E173: 0
C174: Sous-total : | E174: =SUM(E5:E173) -> 0

Sheet Pharm+Pr.Ménager
A1: La Calvette, Magasin Général de Landrienne, 819-727-9559
A2: Le prix inscrit est une indication que nous essayons de respecter, mais nous devons nous ajuster aux fluctuations au jour le jour.
A3: Desription #1 | B3: Desription #2 | C3: Qté | D3: Prix | E3: Total
A4: Pharmacie
A5: Absorbine | D5: 6.19 | E5: =C5*D5 -> 0
A6: Alcool 50% | D6: 2.49 | E6: 0
A7: Antiphlo avec odeur | D7: 10.95714286 | E7: 0
A8: Antiphlo Sans Odeur | D8: 18.04285714 | E8: 0
A9: Aspirine | D9: 3.99 | E9: 0
A10: Biberon Platex | D10: 6.89 | E10: 0
A11: Condom Lub Lyfe style | D11: 2.02 | E11: 0
A12: Condom Trojan | D12: 3.69 | E12: 0
A13: Gravol | D13: 8.59 | E13: 0
A14: Lames de rasoir Mach3 | D14: 13.29 | E14: 0
A15: Murine | D15: 6.27 | E15: 0
A16: Péroxyde | D16: 2.35 | E16: 0
A17: Plasteur Plastique | D17: 6.49 | E17: 0
A18: Plasteur Tissu | D18: 6.49 | E18: 0
A19: Rasoir jetable | D19: 6.09375 | E19: 0
A20: Robitussin Mucus | D20: 9.85 | E20: 0
A21: Rollaid Pqt | D21: 0.8984375 | E21: 0
A22: Sacs de biberon | D22: 9.99 | E22: 0
A23: Tempra 0-2 ans | D23: 7.15 | E23: 0
A24: Tums | D24: 6.98 | E24: 0
A25: Tums Pqt | D25: 1.073784722 | E25: 0
A26: Tylenol | D26: 5.69 | E26: 0
A27: Tylenol 23lb-bébé(gouttes) | D27: 11.89 | E27: 0
A28: Tylenol Enfant 2-11 ans Fruit | D28: 12.29 | E28: 0
A29: Vaseline 106g | D29: 2.99 | E29: 0
A30: Vicks Vapo Tub | D30: 7.15 | E30: 0
A32: Produits pour le corps
A33: Anti-sudorifique Old Spice | D33: 5.99 | E33: =C33*D33 -> 0
A34: Anti-sudorifique Secret | D34: 3.75 | E34: 0
A35: Anti-sudorifique Speed Stick | D35: 4.99 | E35: 0
A36: Brosse à dents adulte | D36: 1.59375 | E36: 0
A37: Brosse à dents enfant | D37: 2.99 | E37: 0
A38: Coton tige | D38: 3.49 | E38: 0
A39: Coupe ongles | D39: 2.25 | E39: 0
A40: Crème à mains – Curel | D40: 5.35 | E40: 0
A41: Débarbouillettes humides | D41: 4.95 | E41: 0
A42: Fixatif Herbal Essence | D42: 5.29 | E42: 0
A43: Gel coiffant Herbal Essence | D43: 5.29 | E43: 0
A44: Lipsil Cerise. | D44: 1.66796875 | E44: 0
A45: Lipsil Or (boite de 8) | D45: 1.66796875 | E45: 0
A46: Mousse à raser Gilette | D46: 3.75 | E46: 0
A47: Mousse coiffante Herbal Essence | D47: 5.29 | E47: 0
A48: Revitalisant Herbal Essence | D48: 5.39 | E48: 0
A49: Savon en barre Dove | D49: 3.99 | E49: 0
A50: Savon en barre Ivory | D50: 2.7 | E50: 0
A51: Shampoing Finesse | D51: 5.39 | E51: 0
A52: Shampoing Head&Shoulder | D52: 9.49 | E52: 0
A53: Shampoing Herbal Essence | D53: 5.39 | E53: 0
A55: Produits pour la maison
A56: Assouplisseur feuilles Bounce | D56: 4.890625 | E56: =C56*D56 -> 0
A57: Eau de javel Spring Time | D57: 2.13 | E57: 0
A58: Essuie-tout | D58: 2.99 | E58: 0
A59: Fantastik javel | D59: 7.05 | E59: 0
A60: Hertel | D60: 5.25 | E60: 0
A61: Laine d'acier | D61: 2.15 | E61: 0
A62: Lysol cuvette | D62: 5.25 | E62: 0
A63: M. Net agrumes | D63: 4.39 | E63: 0
A64: Nettoyeur effaceur magique M.Net | D64: 3.99 | E64: 0
A65: Papier mouchoirs – Majesta | D65: 1.35 | E65: 0
A66: Papier toilette – Majesta | D66: 7.99 | E66: 0
A67: Papier toilette – Royal | D67: 8.59 | E67: 0
A68: Protège-dessous Always | D68: 7.15 | E68: 0
A69: Rafraîchisseur d'air Febreze | D69: 4.890625 | E69: 0
A70: Sac poubelle – Blanc | D70: 1.29 | E70: 0
A71: Sac poubelle – Bleu recyclage | D71: 16.69335938 | E71: 0
A72: Sac poubelle – Multichoix | D72: 2.55 | E72: 0
A73: Sac poubelle – Noir | D73: 2.49 | E73: 0
A74: Sac poubelle – Orange | D74: 2.35078125 | E74: 0
A75: Savon à linge OldOutch | D75: 4.99 | E75: 0
A76: Savon à linge Bio Pure 4litres | D76: 15.99 | E76: 0
A77: Savon lave-vaisselle Cascade | D77: 11.79 | E77: 0
A78: Savon vaisselle Palmolive | D78: 5.15 | E78: 0
A79: Serviette hygiénique nuit Always | D79: 7.486979167 | E79: 0
A80: Serviette hygiénique rég Always | D80: 7.29 | E80: 0
A81: Serviettes de table (cs) | D81: 2.99 | E81: 0
A82: Tampon à récurer- cuivre | D82: 3.09 | E82: 0
A83: Tampon hygiénique rég Tampax | D83: 6.99 | E83: 0
A84: Tampon hygiénique sup Tampax | D84: 4.19 | E84: 0
A85: Tampon S.O.S | D85: 4.7890625 | E85: 0
A86: Windex | D86: 7.39 | E86: 0
C87: Sous-total : | E87: =SUM(E5:E86) -> 0

Sheet Vins-Spiritueux
A1: La Calvette, Magasin Général de Landrienne, 819-727-9559
A2: Le prix inscrit est une indication que nous essayons de respecter, mais nous devons nous ajuster aux fluctuations au jour le jour.
A3: Desription #1 | B3: Code SAQ | C3: Qté | D3: Prix | E3: Total
A4: SPIRITUEUX
A5: Amaretto Disaronno 375 ml | B5: 31864 | D5: 17.4 | E5: 0
A6: Amarula Cream boisson à la crème | B6: 342246 | D6: 28.55 | E6: 0
A7: Avril amaretto | B7: 13673941 | D7: 35.25 | E7: 0
A8: B52 Shots (4 x 30 ml) boisson diverse | B8: 10914738 | D8: 10.4 | E8: 0
A9: Bacardi brun 8 ans | B9: 492520 | D9: 33 | E9: 0
A10: Bacardi Superior rhum blanc | B10: 117 | D10: 23.05 | E10: 0
A11: Baileys l'original boisson à la crème irlandaise | B11: 5959 | D11: 30.25 | E11: 0
A12: Bombay Saphire Dry gin 750ml | B12: 316844 | D12: 28 | E12: 0
A13: Canadian Club whisky canadien | B13: 463 | D13: 14.2 | E13: 0
A14: Canadian Club whisky canadien 1,14L | B14: 11495424 | D14: 37.25 | E14: 0
A15: Canadian Club whisky canadien 750 ml | B15: 42 | D15: 24.95 | E15: 0
A16: Canopée Gin dry 750ml | B16: 12880851 | D16: 35.25 | E16: 0
A17: Capt. Morgan Black épicé | B17: 11741390 | D17: 30.25 | E17: 0
A18: Captain Morgan Original Spiced rhum 1,14 L | B18: 11584478 | D18: 40.5 | E18: 0
A19: Captain Morgan Original Spiced rhum 750ml | B19: 500512 | D19: 28.25 | E19: 0
A20: Captain Morgan Original Spiced rhum épicé ambré | B20: 11253695 | D20: 15.15 | E20: 0
A21: Carolan's Finest boisson à la crème | B21: 623678 | D21: 33.25 | E21: 0
A22: Chemineaud ***** brandy | B22: 4242 | D22: 13.35 | E22: 0
A23: Chic Choc | B23: 12362674 | D23: 34.75 | E23: 0
A24: Coureur des Bois boisson à la crème et au sirop d'érable | B24: 11091921 | D24: 29.9 | E24: 0
A25: Coureur des Bois whisky | B25: 11724979 | D25: 35.75 | E25: 0
A26: Crème de menthe blanche Meagher liqueur de menthe | B26: 196303 | D26: 24.95 | E26: 0
A27: De Kuyper Genièvre 1,14 L | B27: 406 | D27: 35.5 | E27: 0
A28: De Kuyper Genièvre 750 ml | B28: 1339 | D28: 24.5 | E28: 0
A29: Dr McGillicuddy`s | B29: 12496541 | D29: 20.85 | E29: 0
A30: Fireball Whisky liqueur diverse | B30: 10914877 | D30: 22.9 | E30: 0
A31: Gauthier cognac | B31: 63461 | D31: 44.25 | E31: 0
A32: Grand Marnier liqueur d'agrumes | B32: 1784 | D32: 46.25 | E32: 0
A33: Henkell Trocken Piccolo mousseux | B33: 9118 | D33: 4.2 | E33: 0
A34: Jack Daniel's Old No 7 375ml | B34: 119743 | D34: 18.5 | E34: 0
A35: Le Coq d'Or Pineau des Charentes | B35: 24208 | D35: 17.8 | E35: 0
A36: Morbleu Rhum épicé | B36: 13261664 | D36: 35.5 | E36: 0
A37: Ron Bacardi rhum blanc | B37: 596 | D37: 13.75 | E37: 0
A38: Ron Carioca rhum blanc 750 ml | B38: 2444 | D38: 21.7 | E38: 0
A39: Saint Crème | B39: 13917766 | D39: 34.75 | E39: 0
A40: Sauza Blue Silver tequila | B40: 11904435 | D40: 34.5 | E40: 0
A41: Smirnoff triple distillation vodka | B41: 240 | D41: 14.2 | E41: 0
A42: Smirnoff triple distillation vodka 1,14L | B42: 11584486 | D42: 35.75 | E42: 0
A43: Smirnoff triple distillation vodka 750 ml | B43: 67 | D43: 23.5 | E43: 0
A44: Sortilège whisky canadien et sirop d'érable | B44: 522482 | D44: 34 | E44: 0
A45: Sour Push 1,14 L | B45: 10347921 | D45: 26.95 | E45: 0
A46: Stinger Premixxx liqueur de menthe | B46: 12211180 | D46: 33.5 | E46: 0
A47: St-Remy Authentic VSOP brandy | B47: 163519 | D47: 36.25 | E47: 0
A48: Tanqueray 1,14 L | B48: 11447414 | D48: 39.5 | E48: 0
A49: Tanqueray London dry gin 750ml | B49: 2691 | D49: 26.95 | E49: 0
A50: Téquila aux fraises | B50: 10210651 | D50: 29.95 | E50: 0
A51: The Kraken Black Spiced Rhum épicé | B51: 11964606 | D51: 32 | E51: 0
A52: Ungava Dry Gin | B52: 11156764 | D52: 35.75 | E52: 0
A54: VIN BLANC
A55: Barefoot Refresh Crips White | B55: 12206647 | D55: 11 | E55: 0
A56: Bottero Di Cello Bianco Veneto i.g.t. | B56: 430462 | D56: 10.05 | E56: 0
A57: Cellier des Dauphins Prestige blanc | B57: 496349 | D57: 4.5 | E57: 0
A58: Chardonnay Réservé Maison Nicolas (faible en glucide) | B58: 577122 | D58: 12.45 | E58: 0
A59: Citra Chardonnay blanc | B59: 552513 | D59: 9.8 | E59: 0
A60: Donini Terbbiano chardonnay blanc (faible en glucide) | B60: 160317 | D60: 9.45 | E60: 0
A61: Douglas Green blanc (faible en glucide) | B61: 12698872 | D61: 9.95 | E61: 0
A62: Errazzuriz fumé blanc (faible en glucide) | B62: 541250 | D62: 14.15 | E62: 0
A63: Gros Manseng/Sauvignon Brumont (faible en glucide) | B63: 548883 | D63: 12.85 | E63: 0
A64: Hanns Christof Liebfraumilch Qba Rheinhessen | B64: 3269 | D64: 11.65 | E64: 0
A65: Henkell Trocken mousseux | B65: 122689 | D65: 14.7 | E65: 0
A66: Les petits carreaux blanc (faible en glucide) | B66: 12699040 | D66: 10 | E66: 0
A67: Madria Sangria | B67: 12235510 | D67: 10.9 | E67: 0
A68: Pinot grigio Barefoot California | B68: 10915010 | D68: 10.65 | E68: 0
A69: Robertson Winerey chemino blanc | B69: 10754228 | D69: 9.9 | E69: 0
A70: Santi Nello Pinot Grigio | B70: 12663119 | D70: 10.45 | E70: 0
A71: The Grinder blanc (faible en glucide) | B71: 13487372 | D71: 12.4 | E71: 0
A72: Vittori-Trebbiano (faible en glucide) | B72: 12990224 | D72: 8.75 | E72: 0
A74: VIN ROUGE
A75: Apothic Red Californie | B75: 11315497 | D75: 14.95 | E75: 0
A76: Bottero rouge | B76: 409888 | D76: 10.05 | E76: 0
A77: Cabernet/Shiraz Cliff 79 South Eastern Australia | B77: 11133036 | D77: 10.25 | E77: 0
A78: Cabernet-Sauvignon Beringer Collection California | B78: 11133132 | D78: 10.95 | E78: 0
A79: Cabernet-Sauvignon Trapiche | B79: 530907 | D79: 11.25 | E79: 0
A80: Carnivor | B80: 11975090 | D80: 16.95 | E80: 0
A81: Casa Santos Lima | B81: 12989611 | D81: 9.75 | E81: 0
A82: Celeste Ribera del Duero (faible en glucide) | B82: 11741285 | D82: 21.5 | E82: 0
A83: Cellier des Dauphins Prestige Côtes du Rhône | B83: 464669 | D83: 4.5 | E83: 0
A84: Citra Montepulciano d'Abruzzo | B84: 103861 | D84: 9.8 | E84: 0
A85: Cliff 79 3 litres | B85: 11462104 | D85: 34.65 | E85: 0
A86: Errazuriz Max Reserva | B86: 335174 | D86: 18.8 | E86: 0
A87: Fantini | B87: 12477501 | D87: 8.9 | E87: 0
A88: Grand Sud Merlot Rouge | B88: 13152142 | D88: 11.9 | E88: 0
A89: Jacob`s Creek Moscato | B89: 12206891 | D89: 13.45 | E89: 0
A90: La Garnotte (faible en glucide) | B90: 11374411 | D90: 10.9 | E90: 0
A91: Les p'tits carreaux - Rouge | B91: 12477949 | D91: 9.8 | E91: 0
A92: Malbec Bodega Nor. Barrel Sel Mend.(faible en glucide) | B92: 860429 | D92: 14 | E92: 0
A93: Malbec Finca Flichman Mendoza (faible en glucide) | B93: 10669832 | D93: 9.95 | E93: 0
A94: Malbec Reserva Nieto Senetiner Mendoza | B94: 10669883 | D94: 13.75 | E94: 0
A95: Malbec Trapiche fût de chêne réserve Mendoza | B95: 430611 | D95: 13.6 | E95: 0
A96: Martini Rosso vermouth | B96: 11401352 | D96: 13.5 | E96: 0
A97: Ménage à Trois Folie à Deux Californie blanc | B97: 10709988 | D97: 16.75 | E97: 0
A98: Ménage à Trois Folie à Deux Californie rouge | B98: 10709152 | D98: 16.95 | E98: 0
A99: Merlot Donini Delle Venezie i.g.t. | B99: 160358 | D99: 9.45 | E99: 0
A100: Merlot Réserve Maison Nicolas Pays d`Oc IGP | B100: 434993 | D100: 11.8 | E100: 0
A101: Merlot Vivolo di Sasso Veneto i.g.t. | B101: 485565 | D101: 10.85 | E101: 0
A102: Merlot/Cabernet J.P. Chenet vin de pays d'Oc | B102: 485557 | D102: 13.35 | E102: 0
A103: Modello Masi Delle Venezie i.g.t. | B103: 533026 | D103: 13.8 | E103: 0
A104: Monastério de Las Vinas (faible en glucide) | B104: 539528 | D104: 11.55 | E104: 0
A105: Naturéo (sans alcool) | B105: 12773692 | D105: 9.95 | E105: 0
A106: Offley Rei tawny Porto | B106: 157438 | D106: 15.95 | E106: 0
A107: Pinot grigio Voga Delle Venezie i.g.t. | B107: 10803114 | D107: 15.05 | E107: 0
A108: Pinot noir De La Chevalière vin de pays d'Oc | B108: 10374997 | D108: 13.45 | E108: 0
A109: Shiraz Barefoot California | B109: 10915036 | D109: 10.65 | E109: 0
A110: Shiraz/Cabernet Jacob's Creek South Eastern Australia | B110: 106377 | D110: 13.8 | E110: 0
A111: Smoky Bay rouge 3 litres | B111: 13958023 | D111: 32.9 | E111: 0
A112: St-Georges Sélectionné vin fortifié blanc canadien | B112: 3103 | D112: 14.5 | E112: 0
A113: St-Georges Sélectionné vin fortifié canadien | B113: 7286 | D113: 14.5 | E113: 0
A114: St-Raphaël doré apéritif | B114: 4655 | D114: 12.85 | E114: 0
A115: Vive la vie | B115: 12167211 | D115: 9.3 | E115: 0
A116: Vottori-D`Abruzzo | B116: 12990179 | D116: 8.75 | E116: 0
A117: Zinfandel Barefoot Lodi Californie | B117: 11133175 | D117: 10.65 | E117: 0
A119: VIN ROSÉ
A120: Mateus rosé | B120: 166 | D120: 9.75 | E120: 0
A121: White Zinfandel Ernest & Julio Gallo Californie rosé | B121: 285767 | D121: 9.95 | E121: 0
A122: White Zinfandel Ernest & Julio Gallo sierra valley rosé | B122: 308460 | D122: 18.95 | E122: 0
A124: COOLER & COCKTAIL
A125: Bacardi Breezer Ananas (4x330ml) | B125: 13336275 | D125: 13.2 | E125: 0
A126: Mott's Clamato Caesar Originale (4 x 355 ml) cooler | B126: 569418 | D126: 11.4 | E126: 0
A127: Mott's Clamato Caesar toute garnis | B127: 13586400 | D127: 2.95 | E127: 0
A128: Palm Bay Fraise/Ananas (6X355ML) cooler au spiritueux | B128: 11687127 | D128: 13.2 | E128: 0
A129: Palm Bay Lime/Cerise (6x355) canette boisson à la vodka | B129: 11687101 | D129: 13.2 | E129: 0
A130: Palm Bay Pamp Rose (6x355) canette boisson vodka | B130: 11440221 | D130: 13.2 | E130: 0
A131: Smirnoff 4x330ml | B131: 11927741 | D131: 11 | E131: 0
A132: Smirnoff Ice (12 x 330 ml) cooler au spiritueux | B132: 11927688 | D132: 31.8 | E132: 0
A133: Smirnoff Ice canette 6x355ml cooler au spiritueux | B133: 11927661 | D133: 14.1 | E133: 0
A134: WKD Vodka Blue (4 x 330 ml) cooler au spiritueux | B134: 697169 | D134: 10.8 | E134: 0
C135: Sous-total : | E135: =SUM(E5:E134) -> 0

Sheet Animaux
A1: La Calvette, Magasin Général de Landrienne, 819-727-9559
A2: Le prix inscrit est une indication que nous essayons de respecter, mais nous devons nous ajuster aux fluctuations au jour le jour.
A3: Desription #1 | B3: Desription #2 | C3: Qté | D3: Prix | E3: Total
A4: Nourriture animaux
A5: Chien – Goodchoice 16kg | D5: 31.6875 | E5: =C5*D5 -> 0
A6: Chien/Chiot actif – Bestchoice 18kg | D6: 38.296875 | E6: =C6*D6 -> 0
A7: Chien – Benaful bœuf 1,8kg | D7: 10.79 | E7: 0
A8: Chat 100% équilibré Eureka 8kg | D8: 9.99 | E8: 0
A9: Chat – Original Whiskas 1kg | D9: 19.59375 | E9: 0
A10: Chat – Litière longue durée Saular 3,20kg | D10: 7.296875 | E10: 0
A11: Chat - Dîner au poulet en canne Friskies 156gr | D11: 9.356770833 | E11: 0
A12: Chat - Dîner au poulet en canne | D12: 1.207682292 | E12: 0
C13: Sous-total : | E13: =SUM(E5:E12) -> 0

Sheet Quincaillerie
A1: La Calvette, Magasin Général de Landrienne, 819-727-9559
A2: Le prix inscrit est une indication que nous essayons de respecter, mais nous devons nous ajuster aux fluctuations au jour le jour.
A3: Desription #1 | B3: Desription #2 | C3: Qté | D3: Prix | E3: Total
A4: Nourriture animaux
A5: Nom du produit | B5: Format | D5: 31.6875 | E5: =C5*D5 -> 0

Sheet Jouets
A1: La Calvette, Magasin Général de Landrienne, 819-727-9559
A2: Le prix inscrit est une indication que nous essayons de respecter, mais nous devons nous ajuster aux fluctuations au jour le jour.
A3: Desription #1 | B3: Desription #2 | C3: Qté | D3: Prix | E3: Total
A4: Jouet
E5: =C5*D5 -> 0
E6: =C6*D6 -> 0
E7: 0
